Cogmind - Beta 15 @@@ ROGUE MODE // 2025.07.06 @ 15:07:27 Player: Cog on my mind Result: Destroyed by P-80 Master with Gamma Rifle Performance ------------- Evolutions (9) 4500 Regions Visited (28) 5600 Robots Destroyed (890) 4450 Value Destroyed (45468) 45468 Prototype IDs (75) 1500 Alien Tech Used (2) 400 Bonus (27517) 27517 TOTAL SCORE: 89435 Bonus ------- Triggered High Security 500 High Alert Combat Kills 15849 Follower Combat Kills 1702 Network Hubs Disabled 800 Met Imprinter 300 Met Warlord at Base 500 MAIN.C Attacked Warlord 500 Warlord Defense Kills 2196 Built Enhanced Grunts 300 A7 Reached Mainframe 300 Met R17 at Cetus 500 Met R17 at Research 2000 Scanned by Researcher 500 Met Sigix 2000 Friendly Fire -430 Cogmind --------- Core Integrity 0/1600 Matter 287/300 Energy 85/100 System Corruption 63% Temperature Warm (143) Movement Core (50) Location -1/Command Parts ------- > --- POWER (4) -------- (None) > --- PROPULSION (6) --- (None) > --- UTILITY (12) ----- (None) > --- WEAPON (3) ------- (None) > --- INVENTORY (5) ---- Advanced Particle Charger Quantum Capacitor Heavy Disruptor Cannon Peak State ------------ > --- POWER ------------ Improved Quantum Reactor Improved Quantum Reactor Vortex Chain Reactor > --- PROPULSION ------- Centrium Heavy Treads Centrium Heavy Treads Advanced Heavy Siege Treads > --- UTILITY ---------- Coolant Network Huge Storage Unit Experimental Optical Array Experimental Targeting Computer Weapon Mount Quantum Capacitor Advanced Phase Shifter Phase Armor Experimental EM Shield > --- WEAPON ----------- Improved Matter Neutralizer Compact Tesla Bomb Launcher Compact Tesla Bomb Launcher > --- INVENTORY -------- Micro Antimatter Reactor Light Quantum Reactor Biometal Heavy Treads Experimental Power Amplifier Advanced Cryofiber Web Experimental Heat Sink Experimental Energy Well Long-range Terrain Scanner Energy Filter Improved Weapon Shielding Layered Heavy Armor Plating Advanced Focal Shield Experimental Thermal Shield Improved Point Defense System Terrabomb Heavy Disruptor Cannon Heavy Disruptor Cannon Vortex Cannon Enhanced Gamma Bomb Array Advanced Remote Datajack [Rating: 236] Favorites ----------- Power F-cell Engine Engine F-cell Engine Power Core Light Neutrino Core Reactor Improved Quantum Reactor Propulsion Armored Treads Treads Armored Treads Leg Enhanced Armored Leg Wheel Armored Huge Wheel Hover Unit Makeshift Hover Unit Utility High-capacity Storage Unit Device Seismic Detector Storage High-capacity Storage Unit Processor Experimental Targeting Computer Hackware Improved Hacking Suite Protection Heavy Armor Plating Artifact Phase Armor Weapon Ionic Axe Energy Gun Heavy EM Shotgun Energy Cannon Improved Matter Neutralizer Ballistic Gun Helical Railgun Ballistic Cannon Magnetic Acceleration Cannon Launcher Compact Tesla Bomb Launcher Special Weapon Advanced Remote Datajack Slashing Weapon Ionic Axe Piercing Weapon CR-A16's Pointy Stick Special Melee Weapon Dirty Datajack Build | -11 -10 -10 -9 -9 -8 -7 -7 -7 -7 -6 -6 -6 -6 -5 -5 -5 -5 -4 -4 -4 -4 -4 -4 -3 -3 -2 -1 -1 ------- Run | Yrd Mat Min Mat Min Mat Fac Low Low Zio Pro Fac Low Low Fac Upp Upp War Pro Fac Ext Cet Arc Hub Res Qua Res Acc Com Slots Evolved 18 | . . . 2 . 2 2 . . . . 2 . . 2 . . . . 2 . . . . 2 . 2 2 . Power 3 | . . . . . 1 . . . . . . . . . . . . . . . . . . 1 . . 1 . Propulsion 4 | . . . 1 . 1 . . . . . . . . . . . . . . . . . . . . 2 . . Utility 10 | . . . 1 . . 2 . . . . 2 . . 1 . . . . 2 . . . . 1 . . 1 . Weapon 1 | . . . . . . . . . . . . . . 1 . . . . . . . . . . . . . . Parts Attached 391 | 7 5 4 19 . 10 13 6 15 8 8 32 9 5 46 8 5 21 5 30 8 14 3 9 14 19 17 23 28 Power 50 | 1 . . 3 . 1 . 2 3 1 . 7 2 1 6 1 . 5 . 2 . 1 . 1 1 . 4 1 7 Engine 17 | 1 . . 3 . 1 . 2 2 . . 4 1 . 1 . . . . 1 . . . 1 . . . . . Core 13 | . . . . . . . . 1 1 . 3 1 1 4 1 . 1 . . . . . . . . . . . Reactor 20 | . . . . . . . . . . . . . . 1 . . 4 . 1 . 1 . . 1 . 4 1 7 Propulsion 75 | 2 2 . 10 . 3 4 . 2 1 2 3 5 1 5 2 2 5 1 6 1 2 . 2 1 2 5 3 3 Treads 53 | 2 2 . 10 . 3 3 . 2 1 1 3 2 . . 2 1 1 . 1 1 2 . 2 1 2 5 3 3 Leg 8 | . . . . . . . . . . . . . 1 . . . 3 1 3 . . . . . . . . . Wheel 13 | . . . . . . 1 . . . 1 . 3 . 5 . . 1 . 2 . . . . . . . . . Hover 1 | . . . . . . . . . . . . . . . . 1 . . . . . . . . . . . . Flight . | . . . . . . . . . . . . . . . . . . . . . . . . . . . . . Utility 168 | 2 1 . 3 . 3 4 3 6 2 4 15 2 2 17 3 3 5 3 12 6 9 2 3 9 14 5 14 16 Device 86 | 1 . . 2 . 2 2 . 2 2 2 7 . . 9 . 1 2 1 9 3 3 1 1 5 13 2 9 7 Storage 14 | 1 1 . 1 . 1 . . 1 . . . 1 . . . 1 . 1 1 1 . . 1 1 . 1 1 . Processor 12 | . . . . . . . . . . . 1 . . 4 1 . . . 1 . 1 . . 1 . 2 . 1 Hackware 11 | . . . . . . . . . . . 4 . . 1 1 . . . . 1 . 1 . 1 . . 2 . Protection 44 | . . . . . . 2 3 3 . 2 3 1 2 3 1 1 3 1 1 1 5 . 1 1 . . 2 8 Artifact 1 | . . . . . . . . . . . . . . . . . . . . . . . . . 1 . . . Weapon 98 | 2 2 4 3 . 3 5 1 4 4 2 7 . 1 18 2 . 6 1 10 1 2 1 3 3 3 3 5 2 Energy Gun 40 | 1 1 2 2 . 2 4 . 2 . . 5 . . 11 . . . . 4 . . 1 2 1 2 . . . Energy Cannon 29 | . . 1 1 . 1 . 1 . 1 . 1 . . . 2 . 3 . 3 1 2 . 1 2 1 3 3 2 Ballistic Gun 10 | 1 1 1 . . . . . . . . . . 1 4 . . 2 . . . . . . . . . . . Ballistic Cannon 1 | . . . . . . . . . . . . . . 1 . . . . . . . . . . . . . . Launcher 10 | . . . . . . . . . 2 1 1 . . . . . 1 1 3 . . . . . . . 1 . Special Weapon 3 | . . . . . . . . 1 . . . . . 1 . . . . . . . . . . . . 1 . Impact Weapon . | . . . . . . . . . . . . . . . . . . . . . . . . . . . . . Slashing Weapon 3 | . . . . . . 1 . . . 1 . . . 1 . . . . . . . . . . . . . . Piercing Weapon 1 | . . . . . . . . . 1 . . . . . . . . . . . . . . . . . . . Special Melee Weapon 1 | . . . . . . . . 1 . . . . . . . . . . . . . . . . . . . . Unidentified Prototypes 46 | . . . 2 . . . . . 3 . 5 . 1 4 . . 4 . 6 . 5 . 1 5 4 4 1 1 Corrupted Parts 13 | . . 3 . . . . . 1 1 1 . . . . . . . 1 . . 2 . 1 . . . . 3 System Corruption 74 | . . 12 . . . . . 8 9 1 . . . . . . . 3 . . 5 . 7 . . . . 29 Parts Lost 121 | . 3 . . . 2 3 3 10 . 7 10 12 3 20 4 . 4 . 3 . 4 . 3 . 1 2 5 22 Power 23 | . . . . . . . 1 3 . 3 1 2 1 4 . . . . . . . . 1 . . 1 . 6 Propulsion 20 | . 1 . . . . . . 2 . . 2 5 . 5 1 . 1 . . . 1 . . . . . . 2 Utility 40 | . . . . . . 1 2 4 . 3 4 2 2 3 1 . . . 2 . 1 . . . 1 . 3 11 Weapon 38 | . 2 . . . 2 2 . 1 . 1 3 3 . 8 2 . 3 . 1 . 2 . 2 . . 1 2 3 Highest Loss Streak 13 | . 1 . . . 1 2 2 5 . 4 3 10 2 6 2 . 2 . 2 . 4 . 3 . 1 1 3 13 To Critical Strikes 2 | . . . . . . . . 1 . . . . . . . . . . . . . . . . . . . 1 Average Backups 17 | . 8 13 14 16 17 18 18 19 18 18 17 14 13 17 16 16 16 16 17 17 16 17 16 17 17 18 19 19 Power 1 | . 1 2 1 1 . 1 . 1 1 . 1 2 1 . 1 1 1 2 2 3 3 3 2 1 2 1 . 1 Propulsion 2 | . 2 4 3 3 2 4 6 5 5 4 2 3 4 2 . 1 2 3 3 3 1 1 1 1 1 . . 1 Utility 8 | . 2 3 5 7 8 7 5 5 6 8 7 4 5 7 11 11 9 7 6 8 8 10 9 10 10 12 12 11 Weapon 3 | . 2 3 5 5 4 4 3 3 3 3 3 2 1 4 2 2 2 2 4 3 3 3 3 3 3 3 4 3 Tool/Special . | . . . . . . . . . . . . . . . . . . . . . . . . . . . . . Unused Backups 80 | . 1 2 7 . 11 5 1 1 3 1 5 . . 10 1 1 2 . 3 1 3 . . 1 5 8 . 8 Power 14 | . . . 2 . . . 1 . . . 2 . . . 1 1 . . 1 . . . . . . 3 . 3 Propulsion 11 | . . . 1 . . 1 . . . . . . . 5 . . . . . . 3 . . . 1 . . . Utility 35 | . 1 . 2 . 8 3 . 1 1 1 2 . . 3 . . 2 . 1 . . . . 1 1 4 . 4 Weapon 16 | . . 2 2 . 3 . . . 2 . 1 . . 1 . . . . . 1 . . . . 2 1 . 1 Tool/Special 4 | . . . . . . 1 . . . . . . . 1 . . . . 1 . . . . . 1 . . . Average Slot Usage (%) 85 | . 99 99 99 100 99 89 83 85 91 81 89 97 93 87 77 81 86 90 88 88 86 83 82 79 77 72 74 74 Engine 6 | . 14 14 10 11 17 15 14 13 15 4 6 12 6 2 . . . . 2 5 5 5 9 4 4 1 . . Core 1 | . . . . . . . . . . 2 5 . 4 4 8 11 8 . . . . . . . . . . . Reactor 4 | . . . . . . . . . . . . . . 2 1 . 2 11 7 5 5 5 . 3 4 6 12 15 Treads 14 | . 28 28 33 33 35 20 15 14 15 15 17 24 6 2 6 11 9 . 1 9 7 10 10 8 9 12 12 12 Wheel 3 | . . . . . . 4 7 7 7 7 3 . 19 12 5 5 5 5 7 10 6 . . . . . . . Device 19 | . 14 14 21 22 17 20 12 14 19 21 17 31 14 14 5 5 6 9 16 20 20 20 25 27 30 27 22 21 Storage 6 | . 14 14 11 11 9 7 7 7 7 7 6 6 12 5 5 5 5 5 5 5 5 5 5 4 4 4 4 4 Processor 6 | . . . . . . . . . . . 4 6 6 18 22 23 22 17 13 10 10 10 10 9 9 8 8 2 Protection 4 | . . . . . . 4 9 9 10 6 7 . 10 3 4 4 5 8 8 5 9 10 5 4 1 2 2 5 Energy Gun 6 | . 13 8 21 22 13 12 10 8 13 7 11 8 . 10 5 . . . 4 . . 2 3 3 1 . . . Energy Cannon 4 | . . . . . 4 1 2 4 1 3 . . 4 . . 5 7 . 3 10 11 12 10 9 8 8 7 4 Ballistic Gun 1 | . 14 19 . . . . . . . . . . 4 3 . . . 11 2 . . . . . . . . . Launcher 1 | . . . . . . . . . . 2 . 2 . . . . . . . . . . . . . . 2 6 Peak Build Rating 236 | 7 8 13 20 20 28 47 47 58 54 52 74 70 59 92 92 85 107 108 121 119 152 152 145 162 179 200 236 236 Average Rating 107 | 5 7 8 19 20 25 40 42 48 51 45 65 64 47 79 82 83 88 105 114 116 135 150 139 158 167 191 220 219 On Entrance 81 | . 7 8 9 20 20 26 38 45 52 50 43 66 47 47 83 84 84 101 104 114 113 152 145 134 159 177 192 236 Naked Turns 1 | . . . . . . . . . . . . . . . . . . . . . . . . . . . . 1 Heaviest Build 272 | 15 30 30 59 59 70 84 94 100 98 89 100 79 73 88 96 91 120 117 131 126 128 129 125 151 156 156 227 272 Greatest Support 240 | 40 40 40 60 60 80 88 28 28 28 28 96 96 42 48 38 28 44 28 32 32 160 160 160 155 155 225 240 240 Greatest Overweight (x) 7 | . . . . . 1 2 3 3 3 3 3 2 7 2 3 3 4 4 6 3 7 . . 1 1 1 . 1 Average Overweight (x) 1 | . . . . . . 1 2 2 2 2 1 . 1 1 2 2 2 3 3 3 2 . . . . . . . Largest Inventory Capacity 25 | 8 15 15 20 20 20 20 20 20 20 20 20 20 20 20 20 20 20 20 20 20 20 20 20 25 20 20 25 25 Average Capacity 20 | 7 11 15 15 20 20 20 20 20 20 20 20 20 20 20 20 20 20 20 20 20 20 20 20 20 20 20 24 24 Most Carried 25 | 2 13 15 16 16 20 20 20 20 20 20 20 19 16 20 20 20 20 20 20 20 20 20 20 20 20 20 25 25 Average Carried 19 | . 8 13 14 16 18 19 18 19 19 19 18 15 14 18 19 19 19 19 19 19 19 20 19 19 19 19 22 23 Final Capacity 25 | 8 15 15 20 20 20 20 20 20 20 20 20 20 20 20 20 20 20 20 20 20 20 20 20 20 20 20 25 25 Final Carried 24 | 2 13 15 16 16 20 16 20 18 20 18 16 13 15 20 19 20 20 20 20 20 20 20 20 20 19 19 24 21 Class Distribution -------------------- 34% | Mutant 17% | Generator-Tank 8% | Scavenger-Mutant 8% | Scavenger-Gunner 7% | Assassin 6% | Gunner 6% | Derelict-Mutant 4% | Scavenger-Assassin Dominant Class ---------------- Mutant | -10/Materials Mutant | -10/Mines Scavenger-Mutant | -9/Materials Mutant | -9/Mines Mutant | -8/Materials Mutant | -7/Factory Mutant | -7/Lower Caves Derelict-Mutant | -7/Lower Caves Scavenger-Mutant | -7/Zion Derelict-Mutant | -6/Proximity Caves Mutant | -6/Factory Mutant | -6/Lower Caves Scavenger-Mutant | -6/Lower Caves Mutant | -5/Factory Assassin | -5/Upper Caves Assassin | -5/Upper Caves Assassin | -5/Warlord Scavenger-Assassin | -4/Proximity Caves Mutant | -4/Factory Mutant | -4/Extension Commander-Mutant | -4/Cetus Scavenger-Gunner | -4/Archives Scavenger-Gunner | -4/Hub_04(d) Gunner | -3/Research Scavenger-Gunner | -3/Quarantine Scavenger-Gunner | -2/Research Generator-Tank | -1/Access Generator-Tank | -1/Command Resources | -11 -10 -10 -9 -9 -8 -7 -7 -7 -7 -6 -6 -6 -6 -5 -5 -5 -5 -4 -4 -4 -4 -4 -4 -3 -3 -2 -1 -1 ----------- Run | Yrd Mat Min Mat Min Mat Fac Low Low Zio Pro Fac Low Low Fac Upp Upp War Pro Fac Ext Cet Arc Hub Res Qua Res Acc Com Matter Collected 15312 | 282 419 29 275 . 120 301 186 338 145 508 1025 422 80 1115 378 201 357 315 1225 223 255 100 254 212 692 785 1092 3978 Remotely 2197 | . . . . . . . . . . . . . . . . . . . . . . . . . . . . 2197 Salvage Created 56932 | 129 711 66 1298 744 1740 1360 601 690 . 676 4102 669 10 2153 506 335 974 452 2578 1804 280 523 1008 1207 2572 1756 8112 19876 Parts 2283 | 5 51 9 91 32 94 56 23 18 . 31 155 33 2 93 19 9 36 18 115 75 12 25 46 34 108 50 317 726 Haulers Intercepted 37 | . 2 . 2 . 5 2 . . . . 6 . . 3 . . . . 5 . . . . 4 2 . 6 . Recyclers Shooed 15 | . . . 1 . . 1 . . . . 5 . . 3 . . . . 3 . . . . . . . 2 . Parts Field Recycled . | . . . . . . . . . . . . . . . . . . . . . . . . . . . . . Retrieved Matter . | . . . . . . . . . . . . . . . . . . . . . . . . . . . . . Parts Self-Destructed 108 | . . . . . . . 18 12 . 14 . 27 4 . 11 6 . 16 . . . . . . . . . . Prevented 55 | . . . . . . . 14 9 . 14 . 2 . . 14 2 . . . . . . . . . . . . Kills | -11 -10 -10 -9 -9 -8 -7 -7 -7 -7 -6 -6 -6 -6 -5 -5 -5 -5 -4 -4 -4 -4 -4 -4 -3 -3 -2 -1 -1 ------- Run | Yrd Mat Min Mat Min Mat Fac Low Low Zio Pro Fac Low Low Fac Upp Upp War Pro Fac Ext Cet Arc Hub Res Qua Res Acc Com Combat Hostiles Destroyed 724 | . 18 4 23 15 28 21 11 13 . 19 50 21 1 18 12 4 18 7 27 21 3 3 14 8 31 24 91 219 Melee 18 | . . . . . . 3 1 . . . 6 . . 5 3 . . . . . . . . . . . . . Guns 135 | . 18 4 17 13 19 5 3 4 . 2 12 8 . 7 6 . 1 3 7 . . . . 3 3 . . . Cannons 152 | . . . . . 2 3 2 3 . . 1 3 1 2 . 3 11 . 9 8 . 3 8 . 17 11 45 20 AOE 194 | . . . 4 1 5 5 4 4 . 14 21 10 . . . 1 3 4 5 . . . 4 . 2 . 7 100 Classes Destroyed 27 | 2 5 . 3 . . 6 1 . . 2 2 . . . . . 3 . . 1 . . 1 . 1 . . . Worker 39 | . 1 . 1 3 5 1 . . . . 3 . . 2 . . . . 3 . . . . 1 1 . 2 16 Builder 24 | . . . 1 . 1 2 . . . . 6 . . 2 . . . . 4 . . . 1 . 1 . 6 . Tunneler 8 | 1 . . . . . 1 . . . . . . . 1 . . . . 1 . . . . . . . 4 . Hauler 37 | . 2 . 2 . 5 2 . . . . 6 . . 3 . . . . 5 . . . . 4 2 . 6 . Recycler 16 | 1 . . 1 . . . . . . . 7 . . 3 . . . . 1 . . . . . 1 . 1 1 Carrier 6 | . . . . . . 1 . . . . . . . . . . . . . . . . . . . . . 5 Minesweeper 4 | . . . . . . . . . . 2 . 1 . . 1 . . . . . . . . . . . . . Mechanic 8 | . . . . . . . . . . . 1 . . 1 . . . . . . . . . . . . . 6 Operator 12 | . . . . . . . . . . . 1 . . . . . . . . 2 . 9 . . . . . . Drone 2 | . . . . . . . . . . 2 . . . . . . . . . . . . . . . . . . Watcher 48 | . 2 . 3 . 4 3 . . . . 3 . . 2 . . . . 4 2 1 . 2 2 3 1 10 6 Swarmer 114 | . 6 4 9 . 8 3 3 2 . 6 7 14 1 1 8 4 1 . 1 3 . . . . 4 5 13 11 Saboteur 13 | . . . . . . . . . . . . . . . . . 2 . . . . . . . . . . 11 Grunt 292 | . 12 . 7 15 13 8 5 5 . 6 26 3 . 4 2 . 8 7 7 4 . . 7 6 8 3 30 106 Brawler 22 | . . . 1 . . . 1 . . 1 . 1 . . . . . . . . . . . . 1 . 4 13 Duelist 28 | . . . . . . 1 . 5 . . 2 2 . . . . . . . . . . . . . 1 2 15 Protector 18 | . . . . . . 1 . 1 . . 1 . . . . . 1 . . . . . . . 1 . . 13 Researcher 4 | . . . . . . . . . . . . . . . . . . . . . . . . . 4 . . . Sentry 52 | . . . 7 . 7 1 1 . . 2 7 1 . 2 1 . . . 2 6 . 3 3 2 . . 5 2 Specialist 1 | . . . . . . 1 . . . . . . . . . . . . . . . . . . . . . . Hunter 48 | . . . . . . 1 . . . 2 1 . . 2 1 . 1 . 9 6 . . 1 . 2 6 10 6 Programmer 104 | . . . . . . 5 1 . . . 6 . . 10 . . 3 . 8 . . . 2 . 12 2 27 28 Heavy 1 | . . . . . . . . . . . . . . . . . . . . . . . 1 . . . . . Behemoth 2 | . . . . . . . . . . . . . . . . . . . . 2 . . . . . . . . Cetus Guard 3 | . . . . . . . . . . . . . . . . . . . . . 3 . . . . . . . Lightning 3 | . . . . . . . . . . . . . . . . . . . . . . . . . 3 . . . Investigator 2 | . . . . . . . . . . . . . . . . . . . . . . . . . . . . 2 Striker 7 | . . . . . . . . . . . . . . . . . 1 . . . . . . . . 3 . 3 Executioner 16 | . . . . . . . . . . . . . . . . . 1 . . . . . . . . 4 . 11 Decomposer 1 | . . . . . . . . . . . . . . . . 1 . . . . . . . . . . . . Packrat 3 | . . . . . . . . . . . . . . . . 3 . . . . . . . . . . . . Samaritan 1 | . . . . . . . 1 . . . . . . . . . . . . . . . . . . . . . Surgeon 1 | . . . . . . . . . . . . . . . . . 1 . . . . . . . . . . . Thug 1 | . . . 1 . . . . . . . . . . . . . . . . . . . . . . . . . Best Kill Streak 45 | 1 3 4 7 7 9 10 5 4 . 4 8 9 1 6 5 2 9 4 11 5 4 3 4 8 5 7 16 45 Combat Bots Only 45 | . 3 4 7 6 7 5 5 4 . 4 8 9 1 3 5 2 9 4 8 5 3 3 4 5 5 7 16 45 Max Kills in Single Turn 7 | 1 2 2 2 2 3 7 2 3 . 3 4 3 1 2 1 1 2 3 2 1 1 1 2 1 2 2 4 7 Gunslinging 1 | . 1 . . . 1 . . . . . 1 . . . . . . . . . . . . . . . . . Exploded 7 | . . . 1 1 1 5 2 3 . 3 3 3 . . . 1 2 3 2 . . . 2 . 1 . 3 7 Melee 1 | . . . . . . 1 1 . . . 1 . . 1 1 . . . . . . . . . . . . . Uniques/NPCs Destroyed . | . . . . . . . . . . . . . . . . . . . . . . . . . . . . . Combat | -11 -10 -10 -9 -9 -8 -7 -7 -7 -7 -6 -6 -6 -6 -5 -5 -5 -5 -4 -4 -4 -4 -4 -4 -3 -3 -2 -1 -1 -------- Run | Yrd Mat Min Mat Min Mat Fac Low Low Zio Pro Fac Low Low Fac Upp Upp War Pro Fac Ext Cet Arc Hub Res Qua Res Acc Com Hostile Shots Fired 3379 | . 91 12 54 25 87 126 85 60 . 160 380 89 20 161 76 20 95 32 155 36 38 14 72 27 138 46 352 928 Missed 1076 | . 26 4 19 8 33 49 22 18 . 68 137 23 9 43 17 8 28 14 66 14 12 3 16 12 38 19 121 249 Hits 2303 | . 65 8 35 17 54 77 63 42 . 92 243 66 11 118 59 12 67 18 89 22 26 11 56 15 100 27 231 679 Melee 39 | . . . . . . . 3 9 . . 2 3 . . . . 2 . . . . . . . . . 5 15 Projectile 2264 | . 65 8 35 17 54 77 60 33 . 92 241 63 11 118 59 12 65 18 89 22 26 11 56 15 100 27 226 664 AOE 8 | . . . . . . . . . . . . . . 2 . . . . . . . . 1 . . . 2 3 Critical Strikes 128 | . . . 3 . 3 4 5 5 . 4 11 1 . 6 1 . 3 . 8 1 1 . 5 . 7 . 11 49 Part Disruptions 13 | . . . . . . . . . . . 4 . . . . . . . . . . . . . . . 1 8 Damage Taken 36415 | . 716 109 456 224 593 978 1054 1120 . 1326 4315 1345 202 2769 922 179 1360 340 1329 457 400 228 1799 214 1237 315 2050 10378 Core 3894 | . 157 24 72 11 54 65 88 18 . 132 381 172 . 370 163 . 151 95 23 32 34 17 99 19 69 28 92 1528 Absorbed by Shields 5136 | . . . . . 225 325 104 . . . . . . . . . . . . 205 119 . . 222 1206 326 1488 916 Reduced by Siege Mode 1353 | . . . . . . . . . . . . . . . . . . . . . . 5 48 . 39 . 63 1198 Redirected to Core 659 | . . . . . . . . . . . . . . . . . . . . . . . . . . . 10 649 Redirected to Shielding 5 | . . . . . . . . . . . . . 5 . . . . . . . . . . . . . . . Ignored by Resistances 10998 | . . . . . . . 8 . . 136 154 119 . 117 160 . 191 81 189 127 171 53 . . 509 47 1849 7087 Regen/Repaired (Parts) 2273 | . . . 67 . 129 . . . 231 . 566 . . . . . 1018 . 212 . . . . . . 50 . . Core Remaining (%) 68 | 100 . 27 . 79 90 . . . . 56 . . 34 . . . . 22 . . . . 82 . 93 98 . . Volleys Fired 1954 | 4 63 5 53 25 69 58 26 47 . 46 136 29 3 74 36 13 36 16 112 74 20 46 62 40 135 59 366 301 Largest 3 | 2 2 2 2 2 2 2 2 2 . 2 2 2 1 3 2 1 3 2 3 1 1 1 2 1 1 1 2 3 Hottest 260 | 70 70 60 100 100 106 120 114 124 . 118 115 115 35 195 125 81 260 76 190 81 105 105 98 113 113 120 230 158 Shots Fired 2815 | 8 126 10 103 50 137 113 53 76 . 84 251 40 3 163 51 16 63 30 188 77 18 46 65 40 138 59 368 439 Gun 1345 | 8 126 10 103 50 111 104 44 46 . 44 229 20 . 141 39 . 8 28 118 . . 28 9 33 46 . . . Cannon 1068 | . . . . . 26 9 9 28 . 22 8 11 3 16 12 16 49 . 54 77 15 18 50 7 92 59 337 150 Launcher 354 | . . . . . . . . . . 14 7 9 . . . . 5 2 16 . 3 . 6 . . . 16 276 Special 48 | . . . . . . . . 2 . 4 7 . . 6 . . 1 . . . . . . . . . 15 13 Kinetic 227 | 4 65 5 . . . . . . . . . . . 40 . . 8 28 77 . . . . . . . . . Thermal 572 | 4 61 5 . . . . . . . . 8 11 3 16 . . 5 . 41 1 13 46 50 7 74 11 108 108 Explosive 36 | . . . . . . . . . . 14 7 9 . . . . . 2 4 . . . . . . . . . Electromagnetic 1924 | . . . 103 50 137 113 53 74 . 66 229 20 . 101 51 16 43 . 66 76 5 . 15 33 64 48 243 318 Entropic 8 | . . . . . . . . . . . . . . . . . 6 . . . . . . . . . 2 . Robot Hit Streak 40 | 4 8 8 8 18 14 12 10 18 . 12 19 17 1 17 6 4 24 6 17 34 9 12 20 18 40 18 40 35 Robot Miss Streak 7 | 2 3 3 7 5 5 4 3 5 . 3 3 3 3 4 4 4 5 1 3 3 1 3 1 1 1 1 2 5 Penetration Max 2 | . . . . . . . . . . . . . . 1 . . 2 . 2 . . . . . 1 1 . . Secondary Targets 21 | . 3 . 6 . 5 1 1 . . . 1 1 . 1 1 . . 1 . . . . . . . . . . Max Gunslinging Chain 1 | . 1 . 1 . 1 1 1 . . . 1 1 . 1 1 . . 1 . . . . . . . . . . Capacitor 913 | . . . . . . . . . . . . . . . . . . . 12 76 15 46 59 40 138 59 330 138 Shots Hit Robots 2095 | 5 78 5 70 41 103 78 37 62 . 53 196 24 1 151 32 11 45 17 129 64 12 37 51 37 121 50 305 280 Core Hits 1675 | 3 41 6 48 25 68 39 16 27 . 44 119 29 2 55 12 8 32 18 78 23 4 16 27 18 46 19 144 708 Critical Kills 14 | . 1 . . . . . . . . . . . . 1 . . 1 1 2 . . 1 . . . . 4 3 Critical Parts Destroyed 4 | . . . . . . . . . . . . . . 1 . . . . 3 . . . . . . . . . Critical Strikes 67 | . 3 . . . . 5 1 . . 1 8 . . 4 1 . 3 1 5 2 . 1 1 2 5 8 11 5 Burn 2 | . 2 . . . . . . . . . . . . . . . . . . . . . . . . . . . Meltdown 10 | . . . . . . . . . . . . . . 1 . . . . 1 . . 1 . . . . 4 3 Destroy 8 | . 1 . . . . . . . . . . . . 1 . . 1 1 4 . . . . . . . . . Corrupt 38 | . . . . . . 4 1 . . 1 4 . . . 1 . . . . 2 . . 1 2 5 8 7 2 Sever 3 | . . . . . . 1 . . . . . . . 2 . . . . . . . . . . . . . . Impale 4 | . . . . . . . . . . . 4 . . . . . . . . . . . . . . . . . Sunder 2 | . . . . . . . . . . . . . . . . . 2 . . . . . . . . . . . Melee Attacks 139 | . . . . . . 19 5 19 1 . 32 1 . 48 5 4 . 1 4 . . . . . . . . . Impact . | . . . . . . . . . . . . . . . . . . . . . . . . . . . . . Slashing 85 | . . . . . . 19 5 . . . . . . 47 5 4 . 1 4 . . . . . . . . . Piercing 54 | . . . . . . . . 19 1 . 32 1 . 1 . . . . . . . . . . . . . . Sneak Attacks 16 | . . . . . . . . 1 . . 3 1 . 5 . 4 . . 2 . . . . . . . . . Combat Hostiles 1 | . . . . . . . . 1 . . . . . . . . . . . . . . . . . . . . Follow-up Attacks . | . . . . . . . . . . . . . . . . . . . . . . . . . . . . . Damage Inflicted 116425 | 62 1033 82 1723 1024 2668 3101 927 1200 . 2456 8757 1751 42 4480 770 793 2623 792 5841 2469 951 1442 2647 1564 6818 3390 15028 41991 Guns 20991 | 62 1022 75 1228 910 1423 1624 402 353 . 420 4064 247 . 2185 391 . 336 382 2431 . . 774 208 1060 1394 . . . Cannons 38789 | . . . . . 488 147 100 580 . 478 198 348 31 376 217 270 1544 . 1547 2435 517 668 2025 304 5028 3390 13553 4545 Explosions 52517 | . . . 478 90 737 1081 314 248 . 1558 3698 1090 . 31 . 123 743 410 1655 34 434 . 414 200 396 . 1350 37433 Melee 3815 | . . . . . . 249 94 19 . . 729 66 . 1888 162 400 . . 208 . . . . . . . . . Ramming 313 | . 11 7 17 24 20 . 17 . . . 68 . 11 . . . . . . . . . . . . . 125 13 Kinetic 3734 | 25 521 30 . . . . . . . . . . . 830 . . 336 382 1610 . . . . . . . . . Thermal 32569 | 37 501 45 325 90 737 263 193 248 . 59 1213 348 31 376 . 123 743 . 1228 40 440 1442 2170 504 3958 678 5375 11402 Explosive 7443 | . . . . . . 818 . . . 1499 2683 1090 . . . . . 410 808 . . . . . . . . 135 Electromagnetic 68191 | . . . 1381 910 1911 1771 623 933 . 898 4064 247 . 1386 608 270 1184 . 1987 2429 511 . 477 1060 2860 2712 9528 30441 Impact . | . . . . . . . . . . . . . . . . . . . . . . . . . . . . . Slashing 2933 | . . . . . . 249 94 . . . . . . 1820 162 400 . . 208 . . . . . . . . . Piercing 882 | . . . . . . . . 19 . . 729 66 . 68 . . . . . . . . . . . . . . Entropic 360 | . . . . . . . . . . . . . . . . . 360 . . . . . . . . . . . Highest Corruption 62 | . . 12 . . 1 4 6 14 14 1 7 7 7 18 15 15 15 3 9 9 14 14 20 . 17 . 6 62 Average Corruption 11 | . . 10 . . 1 2 5 9 13 1 3 7 7 12 14 15 15 3 5 9 12 11 10 . 11 . 3 30 Corruption Purged 20 | . . . . . . . . . . . . . . 10 . . . . . . . 6 . . . . 4 . Corruption Blocked 3 | . . . . . . . . . . . . . . . . . . . . . . . . . . 3 . . Effects 901 | . . . . . . 14 36 63 4 12 48 55 6 45 42 53 2 . 33 49 28 19 33 . 44 . 68 247 Message Errors 199 | . . . . . . 5 9 16 1 4 10 9 1 6 13 13 1 . 5 11 5 2 8 . 12 . 18 50 Matter Fused 214 | . . . . . . 2 10 12 . 6 11 17 1 13 9 15 . . 8 6 9 4 6 . 9 . 18 58 Heat Flow Errors 99 | . . . . . . 3 5 7 . 1 7 5 1 6 5 4 . . 8 6 1 2 6 . 4 . 5 23 Energy Discharges 94 | . . . . . . . 2 5 1 . 4 9 1 5 2 7 . . 2 6 4 3 4 . 6 . 9 24 Parts Rejected 15 | . . . . . . 1 . 2 . . 1 . . 2 1 . . . . 1 . . 2 . . . 2 3 Parts Fused 7 | . . . . . . . . 2 . . . . . . . 1 . . 1 1 . . . . 1 . . 1 Data Loss (minor) 103 | . . . . . . 1 5 4 1 1 8 7 . 6 5 5 . . 7 6 4 2 1 . 5 . 9 26 Data Loss (major) 46 | . . . . . . . 2 5 . . 2 4 2 1 3 3 . . 1 5 . 2 1 . 1 . 2 12 Misfires 47 | . . . . . . . 2 3 . . 3 4 . 2 1 3 . . . 4 1 2 1 . 4 . 3 14 Alerts 25 | . . . . . . 2 . 2 1 . 2 . . 1 2 2 1 . . 2 1 . 3 . 1 . . 5 Misdirections 3 | . . . . . . . . 1 . . . . . 1 . . . . . . . . . . . . . 1 Weapon Failures 49 | . . . . . . . 1 4 . . . . . 2 1 . . . 1 1 3 2 1 . 1 . 2 30 Overload Shots . | . . . . . . . . . . . . . . . . . . . . . . . . . . . . . Overflow Damage 3828 | . . . . . 19 104 56 30 . 58 279 80 . 351 88 97 79 . 256 78 . 77 82 . 362 302 741 689 Projectiles 2019 | . . . . . 16 11 . . . 14 28 12 . . 33 6 56 . 80 78 . 77 82 . 338 302 597 289 Explosions 1064 | . . . . . 3 76 46 30 . 44 160 68 . . . . 23 . 89 . . . . . 24 . 101 400 Melee 745 | . . . . . . 17 10 . . . 91 . . 351 55 91 . . 87 . . . . . . . 43 . Knockbacks 3 | . . . . . . . . . . . 1 . . . . . . . . . . . . . . . 1 1 Impact 3 | . . . . . . . . . . . 1 . . . . . . . . . . . . . . . 1 1 Kinetic . | . . . . . . . . . . . . . . . . . . . . . . . . . . . . . Secondary . | . . . . . . . . . . . . . . . . . . . . . . . . . . . . . Self-Inflicted Damage 2364 | . . . . . 76 169 61 45 . 148 545 208 . 31 . . . 57 22 . . . . . 129 . 111 762 Shots 154 | . . . . . 2 3 1 1 . 4 8 4 . 1 . . . 2 1 . . . . . 2 . 5 120 Rammed 31 | . 3 3 5 3 3 . 2 . . . 3 . 4 . . . . . . . . . . . . . 3 2 Targets Rammed 34 | . 4 3 5 4 4 . 2 . . . 3 . 4 . . . . . . . . . . . . . 3 2 Kicked . | . . . . . . . . . . . . . . . . . . . . . . . . . . . . . Crushed 3 | . 1 . . 1 1 . . . . . . . . . . . . . . . . . . . . . . . Highest Temperature 485 | 18 156 . 16 . 11 304 248 254 . 230 375 47 89 447 438 294 200 300 358 329 260 349 348 70 309 312 485 245 Average Temperature 104 | 8 47 . 5 . 5 61 106 65 . 83 117 47 59 121 160 105 118 107 108 100 104 123 137 21 122 141 127 62 Received Heat Transfer 5237 | . 321 . 153 126 225 278 249 261 . 352 1000 153 12 96 27 . 186 45 39 68 49 36 212 27 51 . 225 1046 Effects 19 | . . . . . . . . 1 . . 5 . . 1 3 . . . 1 . . . . . . . 8 . Shutdowns 5 | . . . . . . . . . . . 3 . . 1 1 . . . . . . . . . . . . . Energy Bleed 5 | . . . . . . . . . . . 1 . . . 1 . . . 1 . . . . . . . 2 . Interference 7 | . . . . . . . . 1 . . 1 . . . . . . . . . . . . . . . 5 . Matter Decay 1 | . . . . . . . . . . . . . . . . . . . . . . . . . . . 1 . Damage (minor) 1 | . . . . . . . . . . . . . . . 1 . . . . . . . . . . . . . Siege Activations 16 | . . . . . . . . . . . . . . . . . . . . . . 1 1 . 2 . 3 9 Total Turns 3267 | . . . . . . . . . . . . . . . . . . . . . . 6 18 . 31 . 1345 1867 Longest Duration 1492 | . . . . . . . . . . . . . . . . . . . . . . 6 18 . 24 . 1126 1492 Martial Activations . | . . . . . . . . . . . . . . . . . . . . . . . . . . . . . Shielding Activations . | . . . . . . . . . . . . . . . . . . . . . . . . . . . . . Robots Disrupted 39 | . . . 1 . . . . 2 . 1 3 . . 6 1 . . . . . 1 . . . . . 9 15 Combat Hostiles 33 | . . . 1 . . . . 2 . 1 2 . . 5 1 . . . . . . . . . . . 8 13 Robots Corrupted 253 | . . . 4 1 3 5 2 2 . 5 16 . . 7 4 . 2 . 7 15 3 . 2 5 12 13 40 105 Combat Hostiles 217 | . . . 2 1 2 5 1 2 . 3 10 . . 3 3 . 2 . 6 13 3 . 2 5 9 13 36 96 Parts Fried 631 | . . . 5 5 7 11 4 11 . 12 26 . . 13 3 4 5 . 18 22 4 . 6 4 34 28 86 323 Impact Corruptions 4 | . . . . . . . 2 . . . . . . . . . . . . . . . . . . . 2 . Robots Melted 11 | . . . . . . . . . . . . . . 1 . . 1 . 1 . . 1 . . . . 4 3 Combat Hostiles 8 | . . . . . . . . . . . . . . 1 . . 1 . . . . . . . . . 3 3 Parts Melted 45 | . 4 . . . . 1 . . . . 2 . . 3 . . 2 . 2 . . 2 . 1 . 1 11 16 Heat Transferred 23634 | 111 1521 100 250 100 900 250 200 325 . 50 1150 550 50 500 . 100 1085 . 1086 37 37 1036 100 335 1408 370 3548 8435 Parts Sabotaged 4 | . . . . . . . . . . . . . . . . . 2 . . . . . . . . . . 2 Parts Stolen . | . . . . . . . . . . . . . . . . . . . . . . . . . . . . . Parts Stripped . | . . . . . . . . . . . . . . . . . . . . . . . . . . . . . Power Chain Reactions 101 | . . . 5 1 11 2 3 4 . 1 9 . . 1 . 1 1 . 1 1 . . 2 1 3 . 4 50 Alert | -11 -10 -10 -9 -9 -8 -7 -7 -7 -7 -6 -6 -6 -6 -5 -5 -5 -5 -4 -4 -4 -4 -4 -4 -3 -3 -2 -1 -1 ------- Run | Yrd Mat Min Mat Min Mat Fac Low Low Zio Pro Fac Low Low Fac Upp Upp War Pro Fac Ext Cet Arc Hub Res Qua Res Acc Com Maximum Alert Level 5 | . . . 1 . 2 2 . . . . 4 . . 1 . . . . 1 2 2 1 2 2 2 1 5 5 Low Security (%) 40 | 100 100 100 37 100 83 70 . . . . 6 . . 85 . . . . 29 77 . 6 6 3 68 91 7 . Level 1 24 | . . . 62 . 15 16 . . . . 16 . . 14 . . . . 70 11 70 93 65 92 29 8 9 . Level 2 8 | . . . . . . 13 . . . . 49 . . . . . . . . 11 29 . 27 4 2 . 12 . Level 3 3 | . . . . . . . . . . . 22 . . . . . . . . . . . . . . . 14 . Level 4 5 | . . . . . . . . . . . 4 . . . . . . . . . . . . . . . 13 26 Level 5 5 | . . . . . . . . . . . . . . . . . . . . . . . . . . . 42 . High Security 10 | . . . . . . . . . . . . . . . . . . . . . . . . . . . . 72 Max Security . | . . . . . . . . . . . . . . . . . . . . . . . . . . . . . Peak Influence 6680 | 5 166 80 283 164 419 620 . . . . 1467 . . 303 . . . . 386 576 471 295 667 418 417 280 1752 6680 Initial 1116 | . . 51 . 101 41 87 . . . . 23 . . 303 . . . . . 182 311 122 71 342 105 102 91 1116 Average 873 | . 102 18 184 76 122 158 . . . . 563 . . 167 . . . . 243 160 374 247 355 296 185 124 1124 3831 Influence Increases 24696 | 10 611 148 912 399 959 999 332 306 . 446 2268 470 77 646 385 120 435 160 912 1033 357 305 1128 377 1057 683 2863 6298 Destroy 0b10 Robot/C 15120 | . 360 120 500 300 560 420 280 280 . 380 1080 420 60 360 240 80 340 140 540 520 160 80 440 160 680 480 1840 4300 Destroy 0b10 Robot/NC 1115 | 10 25 . 40 15 75 50 5 5 . 20 150 5 . 70 5 . 5 . 90 25 10 45 25 35 45 5 145 210 Destroy Leader 2544 | . 108 20 140 60 148 100 40 10 . 40 248 30 10 100 20 10 . 20 126 74 . . 118 52 100 102 350 518 Allied During Kill 955 | . . 8 29 . . . 7 11 . 6 14 . 7 . . . . . . 257 170 125 304 . . . 4 13 Trap Triggered on 0b10 40 | . . . . . . . . . . . 30 . . . . . . . 10 . . . . . . . . . Successful Hack 596 | . 12 . 36 . 57 14 . . . . 24 . . . . . . . 32 42 . . . 114 68 . 136 61 Select Force Hacks 250 | . 60 . 60 . 30 . . . . . . . . . . . . . . . . . 100 . . . . . Disable Machine 1260 | . 15 . 75 . 45 195 . . . . 450 . . 45 . . . . 30 15 15 45 30 . 75 30 45 150 Anti-Garrison Action 50 | . . . . . . . . . . . . . . . . . . . . . . . . . . . . 50 Destroy Structure 1611 | . 1 . 17 9 44 55 . . . . 227 . . 26 . . . . 84 10 2 10 96 16 74 6 163 771 Partial Spotted 30 | . . . 15 . . . . . . . . . . . . . . . . . . . . . 15 . . . Lose Combat Pursuer 1125 | . 30 . . 15 . 165 . . . . 45 15 . 45 120 30 90 . . 90 . . 15 . . 60 180 225 Influence Decreases 18086 | 10 478 281 652 551 874 592 754 484 . 408 840 1249 281 963 522 105 164 475 538 851 607 406 680 841 1064 712 1270 1434 Entered New Map 3888 | . . 82 . 159 67 106 222 34 . . 15 543 131 180 62 6 44 315 . 192 245 184 134 311 84 80 62 630 Time Decay 11141 | 10 448 199 592 392 487 456 502 314 . 332 695 586 80 553 410 99 80 160 508 469 262 222 356 530 555 612 738 494 Lost Part 1146 | . 30 . . . 20 30 30 56 . 50 100 120 30 200 40 . 40 . 30 . 40 . 30 . 10 20 50 220 Lost Ally 746 | . . . 60 . . . . 80 . 26 30 . 40 30 10 . . . . 40 60 . 160 . . . 120 90 Purge Threat 1165 | . . . . . 300 . . . . . . . . . . . . . . 150 . . . . 415 . 300 . Squads Dispatched 159 | . 6 . 2 1 3 6 . 1 . 1 24 . . 7 . . . . 9 4 . . 11 7 7 1 27 42 Investigation 25 | . 4 . 2 1 1 1 . . . . 4 . . 1 . . . . . . . . 3 3 2 . 2 1 Extermination 36 | . . . . . . 3 . . . . 6 . . 4 . . . . 4 . . . 1 . 4 . 10 4 Reinforcement 42 | . 2 . . . 2 2 . . . . 9 . . 2 . . . . 5 4 . . 2 4 1 1 7 1 Assault 49 | . . . . . . . . 1 . 1 1 . . . . . . . . . . . 2 . . . 8 36 Garrison 7 | . . . . . . . . . . . 4 . . . . . . . . . . . 3 . . . . . Intercept . | . . . . . . . . . . . . . . . . . . . . . . . . . . . . . Searches Triggered . | . . . . . . . . . . . . . . . . . . . . . . . . . . . . . Construction Impeded 10 | . . . . . 1 . . . . . 1 . . 1 . . . . 2 2 . . 1 . . . 2 . Haulers Reinforced 11 | . . . . . . . . . . . 3 . . 1 . . . . 2 . . . . 2 . 1 2 . Active Scanning Responses . | . . . . . . . . . . . . . . . . . . . . . . . . . . . . . Cargo Convoy Interrupts 1 | . . . . . . 1 . . . . . . . . . . . . . . . . . . . . . . Stealth | -11 -10 -10 -9 -9 -8 -7 -7 -7 -7 -6 -6 -6 -6 -5 -5 -5 -5 -4 -4 -4 -4 -4 -4 -3 -3 -2 -1 -1 --------- Run | Yrd Mat Min Mat Min Mat Fac Low Low Zio Pro Fac Low Low Fac Upp Upp War Pro Fac Ext Cet Arc Hub Res Qua Res Acc Com Distress Signals 34 | . 1 . . . 2 1 . . . . 2 . . 2 . . . . 4 2 1 . 1 6 . 6 2 4 Communications Jammed . | . . . . . . . . . . . . . . . . . . . . . . . . . . . . . Distress Signals . | . . . . . . . . . . . . . . . . . . . . . . . . . . . . . Times Spotted 1110 | . 24 4 32 17 33 33 14 25 . 23 79 22 4 30 21 5 60 7 40 37 10 24 27 19 41 26 124 329 Peak Tracking Total 89 | . 4 4 4 3 6 4 5 5 . 8 10 9 3 5 5 3 20 4 4 7 5 3 6 4 3 4 12 89 Tactical Retreats 44 | . 1 . . 1 . 5 . . . . 2 1 . 3 5 1 3 . . 2 . . 1 . . 2 7 10 Traps | -11 -10 -10 -9 -9 -8 -7 -7 -7 -7 -6 -6 -6 -6 -5 -5 -5 -5 -4 -4 -4 -4 -4 -4 -3 -3 -2 -1 -1 ------- Run | Yrd Mat Min Mat Min Mat Fac Low Low Zio Pro Fac Low Low Fac Upp Upp War Pro Fac Ext Cet Arc Hub Res Qua Res Acc Com Traps Triggered 24 | . 1 1 1 . 2 1 . . . . 2 . . 1 . . . . . 1 . . 2 . 6 . 1 5 Indirectly 1 | . . . . . . . . . . . . . . . . . . . . . . . . . . . . 1 Trap Hack Attempts . | . . . . . . . . . . . . . . . . . . . . . . . . . . . . . Triggered . | . . . . . . . . . . . . . . . . . . . . . . . . . . . . . Disarmed . | . . . . . . . . . . . . . . . . . . . . . . . . . . . . . Reprogrammed . | . . . . . . . . . . . . . . . . . . . . . . . . . . . . . Reused 6 | . . . . . . . . . . . 3 . . . 2 . . . 1 . . . . . . . . . Traps Extracted . | . . . . . . . . . . . . . . . . . . . . . . . . . . . . . Installed 13 | . . . . . . . . . . . 3 6 . 1 2 . . . 1 . . . . . . . . . Triggered 6 | . . . . . . . . . . . 3 . . . 2 . . . 1 . . . . . . . . . Most Traps Carried 6 | . . . . . . . . . . 6 6 5 4 4 5 5 5 5 5 4 4 4 4 4 4 4 4 . Machines | -11 -10 -10 -9 -9 -8 -7 -7 -7 -7 -6 -6 -6 -6 -5 -5 -5 -5 -4 -4 -4 -4 -4 -4 -3 -3 -2 -1 -1 ---------- Run | Yrd Mat Min Mat Min Mat Fac Low Low Zio Pro Fac Low Low Fac Upp Upp War Pro Fac Ext Cet Arc Hub Res Qua Res Acc Com Machines Disabled 92 | . 1 . 5 . 3 13 1 1 . . 30 . . 3 . . 1 . 2 3 1 3 2 . 5 2 3 13 Max in Single Turn 8 | . 1 . 1 . 1 8 1 1 . . 5 . . 1 . . 1 . 1 1 1 1 1 . 1 1 1 2 Garrison Access 6 | . . . . . 1 . . . . . . . . . . . . . . . . . 1 . 1 2 1 . Phase Generator 1 | . . . . . . . . . . . . . . . . . . . . . . . . . . . . 1 Network Hub 4 | . . . . . . . . . . . . . . . . . . . . . . . 4 . . . . . Energy Cycler 1 | . . . . . . . . . . . . . . . . . . . . . . . . . . . 1 . Machines Repaired . | . . . . . . . . . . . . . . . . . . . . . . . . . . . . . Machines Dismantled . | . . . . . . . . . . . . . . . . . . . . . . . . . . . . . Machines Sabotaged 2 | . . . . . . . . . . . . . . . . . . . . . . . 2 . . . . . Overloaded Fab Kills . | . . . . . . . . . . . . . . . . . . . . . . . . . . . . . Hacking | -11 -10 -10 -9 -9 -8 -7 -7 -7 -7 -6 -6 -6 -6 -5 -5 -5 -5 -4 -4 -4 -4 -4 -4 -3 -3 -2 -1 -1 --------- Run | Yrd Mat Min Mat Min Mat Fac Low Low Zio Pro Fac Low Low Fac Upp Upp War Pro Fac Ext Cet Arc Hub Res Qua Res Acc Com Machines Accessed 109 | . 8 1 12 1 11 5 . . . . 8 . . 5 1 . 1 1 9 13 . . 3 6 9 . 9 6 Terminals 75 | . 6 . 9 1 8 2 . . . . 3 . . 1 . . . 1 6 11 . . 3 3 7 . 8 6 Fabricators 8 | . . . . . . 2 . . . . 1 . . 2 . . . . 2 . . . . 1 . . . . Repair Stations 9 | . . . 1 . 1 . . . . . 4 . . . . . . . 1 1 . . . 1 . . . . Recycling Units 7 | . 2 . 2 . 1 . . . . . . . . 1 . . . . . 1 . . . . . . . . Scanalyzers 1 | . . . . . . . . . . . . . . . . . . . . . . . . . 1 . . . Garrison Access 6 | . . . . . 1 1 . . . . . . . 1 . . . . . . . . . 1 1 . 1 . Total Hacks 300 | . 20 1 35 3 31 17 . . . . 24 . . 10 1 . 1 1 17 23 . . 6 15 41 . 31 23 Successful 141 | . 9 1 23 . 18 9 . . . . 12 . . 5 1 . 1 1 5 9 . . 2 6 18 . 14 7 Failed 157 | . 10 . 12 3 13 8 . . . . 11 . . 5 . . . . 12 14 . . 4 9 23 . 17 16 Catastrophic 28 | . 1 . 1 . . 2 . . . . 1 . . 2 . . . . 2 2 . . . 4 3 . 4 6 Database Lockouts 2 | . 1 . . . . . . . . . 1 . . . . . . . . . . . . . . . . . Manual 158 | . 12 . 22 3 14 10 . . . . 14 . . 3 . . . . 9 7 1 . 6 8 22 . 13 14 Terminals 229 | . 18 . 31 3 25 7 . . . . 10 . . 1 . . . 1 11 20 . . 6 9 34 . 30 23 Fabricators 26 | . . . . . . 8 . . . . 5 . . 7 . . . . 4 . . . . 2 . . . . Repair Stations 20 | . . . 2 . 4 . . . . . 9 . . . . . . . 2 2 . . . 1 . . . . Recycling Units 7 | . 2 . 2 . 1 . . . . . . . . 1 . . . . . 1 . . . . . . . . Scanalyzers 3 | . . . . . . . . . . . . . . . . . . . . . . . . . 3 . . . Garrison Access 12 | . . . . . 1 2 . . . . . . . 1 . . . . . . . . . 3 4 . 1 . Terminal Hacks 57 | . 5 1 12 . 9 2 . . . . 2 . . . 1 . 1 1 1 4 . . . 1 7 . 8 2 Record 1 | . . . . . . . . . . . . . . . . . . 1 . . . . . . . . . . Part Schematic 1 | . . . . . . . . . . . 1 . . . . . . . . . . . . . . . . . Robot Analysis 6 | . 2 . 1 . 3 . . . . . . . . . . . . . . . . . . . . . . . Prototype ID Bank 11 | . 2 . 7 . 1 . . . . . . . . . . . . . . . . . . . 1 . . . Open Door 8 | . . 1 . . . . . . . . . . . . 1 . 1 . 1 3 . . . . 1 . . . Branch Access Points 4 | . . . . . . 1 . . . . 1 . . . . . . . . . . . . 1 . . 1 . Terminal Index 3 | . . . . . 1 1 . . . . . . . . . . . . . . . . . . . . 1 . Alert Level 8 | . . . 1 . 1 . . . . . . . . . . . . . . . . . . . 2 . 2 2 Unreport Threat 8 | . . . . . 2 . . . . . . . . . . . . . . 1 . . . . 3 . 2 . Patrol Status 1 | . . . . . . . . . . . . . . . . . . . . . . . . . . . 1 . Hauler Manifests 2 | . . . 1 . 1 . . . . . . . . . . . . . . . . . . . . . . . Zone Layout 4 | . 1 . 2 . . . . . . . . . . . . . . . . . . . . . . . 1 . Fabricator Hacks 8 | . . . . . . 2 . . . . 2 . . 3 . . . . . . . . . 1 . . . . Network Status 3 | . . . . . . 1 . . . . . . . 1 . . . . . . . . . 1 . . . . Load Schematic 2 | . . . . . . . . . . . 1 . . 1 . . . . . . . . . . . . . . Build 3 | . . . . . . 1 . . . . 1 . . 1 . . . . . . . . . . . . . . Repair Station Hacks 13 | . . . 2 . 4 . . . . . 4 . . . . . . . 2 1 . . . . . . . . Scan Component 7 | . . . 1 . 2 . . . . . 2 . . . . . . . 1 1 . . . . . . . . Repair 6 | . . . 1 . 2 . . . . . 2 . . . . . . . 1 . . . . . . . . . Recycling Unit Hacks 2 | . . . . . . . . . . . . . . 1 . . . . . 1 . . . . . . . . Report Inventory 1 | . . . . . . . . . . . . . . 1 . . . . . . . . . . . . . . Retrieve Components 1 | . . . . . . . . . . . . . . . . . . . . 1 . . . . . . . . Scanalyzer 2 | . . . . . . . . . . . . . . . . . . . . . . . . . 2 . . . Insert Component 2 | . . . . . . . . . . . . . . . . . . . . . . . . . 2 . . . Garrison Access Hacks 3 | . . . . . 1 . . . . . . . . . . . . . . . . . . . 1 . 1 . Seal Access 3 | . . . . . 1 . . . . . . . . . . . . . . . . . . . 1 . 1 . Unauthorized Hacks 56 | . 4 . 9 . 4 5 . . . . 4 . . 1 . . . . 2 3 . . 2 4 8 . 5 5 Terminals 42 | . 2 . 7 . 3 1 . . . . 1 . . . . . . . 1 3 . . 2 4 8 . 5 5 Track 10 | . . . 4 . 1 . . . . . . . . . . . . . . . . . . 1 2 . . 2 Botnet 28 | . 2 . 3 . 2 1 . . . . 1 . . . . . . . 1 3 . . . 3 4 . 5 3 Operators 2 | . . . . . . . . . . . . . . . . . . . . . . . . . 2 . . . Sabotage 2 | . . . . . . . . . . . . . . . . . . . . . . . 2 . . . . . Fabricators 7 | . . . . . . 4 . . . . 1 . . 1 . . . . 1 . . . . . . . . . Report 3 | . . . . . . 1 . . . . 1 . . . . . . . 1 . . . . . . . . . Prioritize 1 | . . . . . . 1 . . . . . . . . . . . . . . . . . . . . . . Haulers 2 | . . . . . . 2 . . . . . . . . . . . . . . . . . . . . . . Recompile 1 | . . . . . . . . . . . . . . 1 . . . . . . . . . . . . . . Repair Stations 2 | . . . . . . . . . . . 2 . . . . . . . . . . . . . . . . . Patch 2 | . . . . . . . . . . . 2 . . . . . . . . . . . . . . . . . Recycling Units 5 | . 2 . 2 . 1 . . . . . . . . . . . . . . . . . . . . . . . Tunnel 5 | . 2 . 2 . 1 . . . . . . . . . . . . . . . . . . . . . . . Scanalyzers . | . . . . . . . . . . . . . . . . . . . . . . . . . . . . . Garrison Access . | . . . . . . . . . . . . . . . . . . . . . . . . . . . . . Data Cores Recovered 1 | . . . . . . . . . . . . . . . . . . . . 1 . . . . . . . . Used . | . . . . . . . . . . . . . . . . . . . . . . . . . . . . . Hacking Detections 80 | . 5 . 8 1 9 4 . . . . 5 . . 3 . . . . 8 13 . . 1 6 5 . 7 5 Full Trace Events 8 | . 1 . . 1 . 1 . . . . 1 . . . . . . . . . . . 1 . 1 . 2 . Feedback Events 1 | . . . . . . . . . . . . . . . . . . . . . . . . . . . 1 . Hackware Fried 1 | . . . . . . . . . . . . . . . . . . . . . . . . . . . 1 . Feedback Blocked . | . . . . . . . . . . . . . . . . . . . . . . . . . . . . . Robot Schematics Acquired 8 | . . . . . . . . . 4 . . . . . . . . . . . . . . . 4 . . . Robots Built . | . . . . . . . . . . . . . . . . . . . . . . . . . . . . . Authchips . | . . . . . . . . . . . . . . . . . . . . . . . . . . . . . Time . | . . . . . . . . . . . . . . . . . . . . . . . . . . . . . Total Robot Build Rating . | . . . . . . . . . . . . . . . . . . . . . . . . . . . . . Part Schematics Acquired 28 | . . . . . . . . . 15 . 1 . . . . . . . . . . . . . 12 . . . Parts Built 5 | . . . . . . 2 . . . . 1 . . 2 . . . . . . . . . . . . . . Authchips 2 | . . . . . . . . . . . 1 . . 1 . . . . . . . . . . . . . . Time 232 | . . . . . . 95 . . . . 42 . . 95 . . . . . . . . . . . . . . Total Part Build Rating 24 | . . . . . . 10 . . . . 4 . . 10 . . . . . . . . . . . . . . Parts Repaired 6 | . . . 1 . 2 . . . . . 2 . . . . . . . 1 . . . . . . . . . Time 226 | . . . 51 . 29 . . . . . 118 . . . . . . . 28 . . . . . . . . . Parts Recycled . | . . . . . . . . . . . . . . . . . . . . . . . . . . . . . Recycled Matter . | . . . . . . . . . . . . . . . . . . . . . . . . . . . . . Retrieved Matter . | . . . . . . . . . . . . . . . . . . . . . . . . . . . . . Retrieved Components 3 | . . . . . . . . . . . . . . . . . . . . 3 . . . . . . . . Parts Scanalyzed . | . . . . . . . . . . . . . . . . . . . . . . . . . . . . . Part Schematics Acquired . | . . . . . . . . . . . . . . . . . . . . . . . . . . . . . Parts Damaged . | . . . . . . . . . . . . . . . . . . . . . . . . . . . . . Bothacking | -11 -10 -10 -9 -9 -8 -7 -7 -7 -7 -6 -6 -6 -6 -5 -5 -5 -5 -4 -4 -4 -4 -4 -4 -3 -3 -2 -1 -1 ------------ Run | Yrd Mat Min Mat Min Mat Fac Low Low Zio Pro Fac Low Low Fac Upp Upp War Pro Fac Ext Cet Arc Hub Res Qua Res Acc Com Used RIF Installer . | . . . . . . . . . . . . . . . . . . . . . . . . . . . . . Robots Hacked 3 | . . . . . . . . . . . 1 . . 1 . . . . . . . . . . . . . 1 Non-combat 2 | . . . . . . . . . . . 1 . . 1 . . . . . . . . . . . . . . Combat 1 | . . . . . . . . . . . . . . . . . . . . . . . . . . . . 1 Robot Hacks Applied 3 | . . . . . . . . . . . 1 . . 1 . . . . . . . . . . . . . 1 parse_system 1 | . . . . . . . . . . . . . . . . . . . . . . . . . . . . 1 find_chute 2 | . . . . . . . . . . . 1 . . 1 . . . . . . . . . . . . . . Relay Couplers Released 11 | . . . . . . . . . . . . . . 7 . . . . . . . . 1 . 1 2 . . Machine Destruction 4 | . . . . . . . . . . . . . . . . . . . . . . . 1 . 1 2 . . Programmers 7 | . . . . . . . . . . . . . . 7 . . . . . . . . . . . . . . Fabnet Peak Effective % . | . . . . . . . . . . . . . . . . . . . . . . . . . . . . . Robots Rewired 34 | . . . 1 . . . 1 3 . 3 3 2 . 2 . . . . . 8 . . . . . . 6 5 Allies Hacked . | . . . . . . . . . . . . . . . . . . . . . . . . . . . . . Hacks Repelled . | . . . . . . . . . . . . . . . . . . . . . . . . . . . . . Allies | -11 -10 -10 -9 -9 -8 -7 -7 -7 -7 -6 -6 -6 -6 -5 -5 -5 -5 -4 -4 -4 -4 -4 -4 -3 -3 -2 -1 -1 -------- Run | Yrd Mat Min Mat Min Mat Fac Low Low Zio Pro Fac Low Low Fac Upp Upp War Pro Fac Ext Cet Arc Hub Res Qua Res Acc Com Total Allies 49 | . . 3 1 . . . 1 6 . 3 3 2 . 2 . . . . . 12 5 . . . . . 6 5 Largest Group 15 | . . 3 4 . . . 1 2 . 2 2 2 2 1 . . . . . 10 15 11 10 . . . 1 3 Highest-Rated Group 1007 | . . 40 55 . . . 32 79 . 59 63 50 50 49 . . . . . 532 1007 723 571 . . . 69 180 Highest-Rated Ally 159 | . . 16 16 . . . 32 49 . 30 41 30 30 49 . . . . . 159 159 152 96 . . . 69 64 Total Orders 13 | . . . . . . . . . . . 5 . . 3 1 . . . 1 . . . . . . . 3 . STAY 2 | . . . . . . . . . . . . . . 1 . . . . . . . . . . . . 1 . ROAM 1 | . . . . . . . . . . . 1 . . . . . . . . . . . . . . . . . FOLLOW 1 | . . . . . . . . . . . . . . . . . . . . . . . . . . . 1 . EXPLORE 9 | . . . . . . . . . . . 4 . . 2 1 . . . 1 . . . . . . . 1 . Ally Attacks 298 | . . 7 17 . . . 8 13 . 15 16 . 8 3 . . . . . 52 50 16 70 . . . 8 15 Total Damage 8791 | . . 44 158 . . . 192 314 . 208 1194 . 176 80 . . . . . 1249 1348 422 2533 . . . 375 498 Kills 51 | . . 2 2 . . . 3 2 . 3 9 . 2 . . . . . . 6 6 1 12 . . . 1 2 Allies Corrupted 4 | . . . 1 . . . . . . . . . . 1 . . . . . . . . . . . . 2 . Allies Melted 3 | . . . . . . . . . . . . . . . . . 1 . . . . . . . . 2 . . Intel | -11 -10 -10 -9 -9 -8 -7 -7 -7 -7 -6 -6 -6 -6 -5 -5 -5 -5 -4 -4 -4 -4 -4 -4 -3 -3 -2 -1 -1 ------- Run | Yrd Mat Min Mat Min Mat Fac Low Low Zio Pro Fac Low Low Fac Upp Upp War Pro Fac Ext Cet Arc Hub Res Qua Res Acc Com Active Infowar (turns) 37147 | 53 1147 730 2010 1000 2 1036 922 816 713 1603 2576 1838 27 1570 993 1274 1023 1179 2114 1382 572 469 813 1493 1797 2005 3756 2234 Optics 20609 | . . . . . . . . . . . . . . 1570 993 1274 1023 1179 2114 1382 572 469 813 1493 1797 2005 3756 169 Sensors 6569 | . . . . . . . . . . . . . . 647 760 1274 1023 1179 1385 . . . . . . . . 301 IFF 2030 | . . . . . . . . . . . 169 1834 27 . . . . . . . . . . . . . . . Terrain 2064 | . . . . . . . . . . . . . . . . . . . . . . . . . . . . 2064 Structural 216 | . . . . . . . . . . . . . . 216 . . . . . . . . . . . . . . Seismic 16480 | 53 1147 730 2010 1000 2 1036 922 816 713 1603 2576 1673 . . . . . . 622 43 . 37 146 273 791 175 112 . T.N.C. 7 | . . . . . . . . . . . . . . 7 . . . . . . . . . . . . . . Cloaking 2 | . . . . . . . . . . . . . . . . . . . . . . . . . 2 . . . ECM 1 | . . . . . . . . . . 1 . . . . . . . . . . . . . . . . . . Robot Analysis Total 6 | . 2 . 1 . 3 . . . . . . . . . . . . . . . . . . . . . . . Derelict Logs Recovered 16 | . . 2 . 2 . . 2 1 3 1 . 1 . . 1 1 . 2 . . . . . . . . . . Drone Launches 10 | . . . . . . . . . . . 4 . . 3 . . . . 1 . . . . . . . 2 . Drone Recoveries 5 | . . . . . . . . . . . 3 . . 1 . . . . 1 . . . . . . . . . Exploration | -11 -10 -10 -9 -9 -8 -7 -7 -7 -7 -6 -6 -6 -6 -5 -5 -5 -5 -4 -4 -4 -4 -4 -4 -3 -3 -2 -1 -1 ------------- Run | Yrd Mat Min Mat Min Mat Fac Low Low Zio Pro Fac Low Low Fac Upp Upp War Pro Fac Ext Cet Arc Hub Res Qua Res Acc Com Turns Passed 44262 | 120 1147 730 2010 1000 1648 1579 1343 1513 1235 1632 3028 1838 163 1607 993 1274 1023 1179 2114 1382 572 469 813 1493 1797 2005 3756 4799 Spaces Moved 21609 | 62 552 421 1057 567 847 837 862 908 864 1028 1381 1000 115 878 613 762 552 717 967 770 250 216 418 452 866 1109 1183 1355 Core 4 | 4 . . . . . . . . . . . . . . . . . . . . . . . . . . . . Treads 10751 | 58 552 421 1057 567 847 276 . . . . 367 920 . . . . . . . . 87 216 418 452 866 1109 1183 1355 Legs . | . . . . . . . . . . . . . . . . . . . . . . . . . . . . . Wheels 10854 | . . . . . . 561 862 908 864 1028 1014 80 115 878 613 762 552 717 967 770 163 . . . . . . . Hover . | . . . . . . . . . . . . . . . . . . . . . . . . . . . . . Flight . | . . . . . . . . . . . . . . . . . . . . . . . . . . . . . Fastest Speed 50 | 50 160 160 160 160 160 130 130 130 130 115 130 108 108 101 105 130 115 145 130 145 145 160 160 160 160 153 150 160 Average Speed 150 | 152 160 160 160 160 160 140 139 144 135 130 146 161 108 109 135 144 142 147 152 145 156 160 160 160 168 164 156 172 Slowest Speed 255 | 160 160 160 160 160 240 165 145 145 145 145 245 245 185 130 145 145 160 160 190 145 205 160 160 240 255 237 160 246 Overloaded Moves . | . . . . . . . . . . . . . . . . . . . . . . . . . . . . . Propulsion Burnouts . | . . . . . . . . . . . . . . . . . . . . . . . . . . . . . Robots Hopped . | . . . . . . . . . . . . . . . . . . . . . . . . . . . . . Potential Cave-ins 9 | . . . . . . . . . . . . . . . . . 1 . . . . . . . . . 6 2 Cave-ins Triggered . | . . . . . . . . . . . . . . . . . . . . . . . . . . . . . Exploration Rate (%) 66 | 4 94 99 89 98 77 30 97 85 84 92 44 95 16 29 72 78 81 87 27 90 73 89 54 17 96 39 41 51 Regions Visited 28 Branch Regions 18 Pre-discovered Areas 12 | . 2 1 2 1 1 . . . 2 . . 1 . . . . . 2 . . . . . . . . . . Known Exits Taken 11 | . . . . . . 1 1 . . . 1 . . 1 1 1 1 1 1 . . . . 1 . . 1 . Unknown Exits Taken 17 | 1 1 1 1 1 1 . . 1 1 1 . 1 1 . . . . . . 1 1 1 1 . 1 1 . . Scrap Searched 26 | . . 1 . 2 . . 2 5 5 2 . 2 . . 4 2 . 1 . . . . . . . . . . Spaces Dug 129 | . . . . . . 3 . . . 27 19 21 . 3 . . . 1 8 . . . 3 1 . . 5 38 Terrain Destroyed 1190 | . . . 15 13 43 52 8 18 . 111 210 133 1 12 . 3 10 48 53 . 1 4 14 8 40 2 60 331 Melee 10 | . . . . . . 3 . . . . 3 . . 1 . . . 1 2 . . . . . . . . . Projectile 130 | . . . . . . . . . . . 2 . 1 11 . . 3 17 27 . 1 4 6 1 9 2 18 28 AOE 1050 | . . . 15 13 43 49 8 18 . 111 205 133 . . . 3 7 30 24 . . . 8 7 31 . 42 303 Terrain Rammed . | . . . . . . . . . . . . . . . . . . . . . . . . . . . . . Walls Destroyed . | . . . . . . . . . . . . . . . . . . . . . . . . . . . . . Machines Disabled . | . . . . . . . . . . . . . . . . . . . . . . . . . . . . . Actions | -11 -10 -10 -9 -9 -8 -7 -7 -7 -7 -6 -6 -6 -6 -5 -5 -5 -5 -4 -4 -4 -4 -4 -4 -3 -3 -2 -1 -1 --------- Run | Yrd Mat Min Mat Min Mat Fac Low Low Zio Pro Fac Low Low Fac Upp Upp War Pro Fac Ext Cet Arc Hub Res Qua Res Acc Com Total 31258 | 76 689 469 1282 608 1005 1091 942 1039 922 1233 2050 1181 141 1314 708 915 725 801 1430 1033 429 337 546 1222 1206 1288 3057 3519 Wait 5740 | 2 50 21 97 13 34 122 6 16 20 104 335 100 1 134 16 118 62 53 223 83 118 65 32 680 124 30 1395 1686 Move 21581 | 61 551 420 1056 566 846 836 861 907 863 1027 1380 999 114 877 612 761 551 716 966 769 249 215 417 451 865 1108 1182 1355 Hop . | . . . . . . . . . . . . . . . . . . . . . . . . . . . . . Pick Up 304 | 2 14 5 16 . 20 8 8 7 7 9 30 5 5 37 4 2 13 3 21 3 5 . 4 7 8 15 19 27 Fast Attach 303 | 7 . 3 5 . 4 9 3 7 9 3 15 5 5 33 5 8 15 . 22 12 10 5 10 18 20 25 18 27 Attach 158 | . 3 3 3 . 4 5 2 8 . 8 19 8 4 19 4 . 8 2 11 1 1 . 3 2 3 3 10 24 Detach 30 | . . 3 1 . . 1 . . . . 1 2 1 6 1 . 2 . 4 . 1 . . . 2 . 1 4 Swap 394 | . 2 . 15 . 6 17 8 10 7 20 50 9 . 40 20 . 17 7 29 5 8 2 9 1 18 13 36 45 Drop 449 | . 2 6 28 . 18 16 4 4 15 7 30 2 4 44 3 9 21 3 37 14 17 4 9 23 31 35 27 36 Fire 1954 | 4 63 5 53 25 69 58 26 47 . 46 136 29 3 74 36 13 36 16 112 74 20 46 62 40 135 59 366 301 Melee 139 | . . . . . . 19 5 19 1 . 32 1 . 48 5 4 . 1 4 . . . . . . . . . Ram 3 | . . . . . . . 2 . . . 1 . . . . . . . . . . . . . . . . . Kick . | . . . . . . . . . . . . . . . . . . . . . . . . . . . . . Crush 31 | . 4 3 5 4 4 . . . . . 2 . 4 . . . . . . . . . . . . . 3 2 Escape Stasis 36 | . . . . . . . . . . . 16 . . . . . . . . 8 . . . . . . . 12 Rewire 122 | . . . 3 . . . 17 14 . 9 . 15 . . . . . . . 64 . . . . . . . . Trap 13 | . . . . . . . . . . . 3 6 . 1 2 . . . 1 . . . . . . . . . Miscellaneous 1 | . . . . . . . . . . . . . . 1 . . . . . . . . . . . . . . Route ------- -11/Scrapyard -10/Materials (discovered 5 exits: *Mat x2 / *Min x2 / [*Sub]) -10/Mines (discovered 2 exits: *Mat x2) -9/Materials (discovered 4 exits: *Mat x3 / *Min) -9/Mines (discovered 3 exits: *Mat x2 / [*Zio]) -8/Materials (discovered 2 exits: *Fac x2) -7/Factory (discovered 6 exits: *Fac x2 / Sto x2 / *Low x2) -7/Lower Caves -7/Lower Caves (discovered 2 exits: *Fac / [*Zio]) -7/Zion -6/Proximity Caves -6/Factory (discovered 3 exits: *Fac / *Low x2) -6/Lower Caves -6/Lower Caves -5/Factory -5/Upper Caves -5/Upper Caves (discovered 2 exits: *Fac / *War) -5/Warlord -4/Proximity Caves -4/Factory (discovered 3 exits: *Upp / *Ext x2) -4/Extension (discovered 2 exits: *Res / *Cet) -4/Cetus (discovered 2 exits: *Res / [*Arc]) -4/Archives (discovered 3 exits: *Res / *Hub x2) -4/Hub_04(d) (discovered 3 exits: *Res x3) -3/Research (discovered 3 exits: Arm / *Qua x2) -3/Quarantine -2/Research -1/Access -1/Command History --------- Turn | Location | Event 10 | -11/Scrapyard | Discovered new exit (range 15) 121 | -11/Scrapyard | Entered Materials 312 | -10/Materials | Build established: Mutant 492 | -10/Materials | Discovered new exit (range 9) 592 | -10/Materials | Central database locked down 599 | -10/Materials | Discovered new exit (range 3) 656 | -10/Materials | Discovered new exit (range 16) 780 | -10/Materials | Discovered new exit (range 9) 896 | -10/Materials | Discovered new exit (range 6) 1141 | -10/Materials | Core integrity fell below 50% 1268 | -10/Materials | Entered Mines 1499 | -10/Mines | Discovered new exit (range 8) 1501 | -10/Mines | Learned location of Zion (-7) 1605 | -10/Mines | Assisted by bots powering up and referring to "LRC-V3" 1809 | -10/Mines | Met a Derelict who couldn't figure out how to use a Trap Extractor 1935 | -10/Mines | Found a hidden stash of uninstalled traps 1957 | -10/Mines | Received a Rocket Launcher from a helpful Derelict 1974 | -10/Mines | Discovered new exit (range 5) 1993 | -10/Mines | System corruption reached 10% 1998 | -10/Mines | Entered Materials 1998 | -9/Materials | Accompanied by 3 allies 1998 | -9/Materials | Evolved 2 slots: Propulsion x1, Utility x1 2292 | -9/Materials | Build established: Scavenger-Mutant 2512 | -9/Materials | Lost 5 allies 2570 | -9/Materials | Discovered new exit (range 8) 2692 | -9/Materials | Destroyed 7 combat bots 3095 | -9/Materials | Discovered new exit (range 11) 3497 | -9/Materials | Discovered new exit (range 11) 3576 | -9/Materials | Build established: Mutant 3721 | -9/Materials | Repaired Hvy. Ion Engine 3918 | -9/Materials | Discovered new exit (range 9) 4008 | -9/Materials | Entered Mines 4026 | -9/Mines | Met a Derelict bent on vengeance 4029 | -9/Mines | Learned location of 1 exit from Lower Caves 4149 | -9/Mines | Deemed a non-threat by the Exiles lab entrance 4288 | -9/Mines | Discovered new exit (range 7) 4397 | -9/Mines | A Derelict revealed a hidden shortcut to a safe place 4661 | -9/Mines | Discovered new exit (range 10) 4926 | -9/Mines | Learned Materials stockpile data 5008 | -9/Mines | Entered Materials 5008 | -8/Materials | Evolved 2 slots: Power x1, Propulsion x1 5631 | -8/Materials | Destroyed 7 combat bots 5689 | -8/Materials | Discovered new exit (range 15) 5822 | -8/Materials | Destroyed 7 combat bots 6444 | -8/Materials | Discovered new exit (range 16) 6476 | -8/Materials | Repaired Shield Generator 6491 | -8/Materials | Repaired Lgt. Treads 6656 | -8/Materials | Entered Factory 6656 | -7/Factory | Evolved 2 slots: Utility x2 6657 | -7/Factory | Identified exit to Storage 6988 | -7/Factory | Fabricated Hpw. Shock Rifle (x2) 7082 | -7/Factory | Identified exit to Lower Caves 7710 | -7/Factory | Discovered new exit (range 5) 7899 | -7/Factory | Discovered new exit (range 15) 7937 | -7/Factory | Cargo convoy interrupted 8235 | -7/Factory | Entered Lower Caves 8236 | -7/Lower Caves | Identified exit to Lower Caves 8722 | -7/Lower Caves | Attracted the attention of an 0b10 outpost 9111 | -7/Lower Caves | Found DCF Scrap (11 items) 9294 | -7/Lower Caves | Encountered a Warlord checkpoint 9328 | -7/Lower Caves | Learned Factory stockpile data 9578 | -7/Lower Caves | Entered another Lower Caves area 9578 | -7/Lower Caves | Accompanied by 1 ally 10094 | -7/Lower Caves | Discovered new exit (range 6) 10327 | -7/Lower Caves | Attracted the attention of an 0b10 checkpoint 10356 | -7/Lower Caves | System corruption reached 10% 10384 | -7/Lower Caves | Learned Factory garrison access intel 10395 | -7/Lower Caves | Build established: Derelict-Mutant 10421 | -7/Lower Caves | Attracted the attention of an 0b10 outpost 10572 | -7/Lower Caves | Lost 5 parts (1p1n2u1w) 10576 | -7/Lower Caves | Lost 3 allies 10778 | -7/Lower Caves | Lost 3 parts (1p1n1u) 10894 | -7/Lower Caves | Discovered new exit (range 7) 11091 | -7/Lower Caves | Entered Zion 11135 | -7/Zion | Discovered new exit (range 16) 11233 | -7/Zion | System corruption cleaned by Quarantine Array 11275 | -7/Zion | Found Prototype Launcher 11275 | -7/Zion | Identified Gui. Missile Launcher 11423 | -7/Zion | System corruption cleaned by Quarantine Array 11441 | -7/Zion | Learned Factory emergency access door positions 11479 | -7/Zion | Learned location of Recycling (-7) 11514 | -7/Zion | Found CR-A16's Pointy Stick 11751 | -7/Zion | Found Prototype Device 11751 | -7/Zion | Identified Mobile Refinery Mk. CCLXVII 11822 | -7/Zion | Met Imprinter 11917 | -7/Zion | Build established: Scavenger-Mutant 12216 | -7/Zion | Learned Factory stockpile data 12326 | -7/Zion | Entered Proximity Caves 12789 | -6/Proximity Caves | Attracted the attention of an 0b10 outpost 12798 | -6/Proximity Caves | Attracted the attention of an 0b10 checkpoint 12862 | -6/Proximity Caves | Lost 4 parts (2p2u) 13075 | -6/Proximity Caves | Build established: Derelict-Mutant 13344 | -6/Proximity Caves | Lost 3 parts (1p1u1w) 13625 | -6/Proximity Caves | Discovered new exit (range 7) 13958 | -6/Proximity Caves | Entered Factory 13958 | -6/Factory | Evolved 2 slots: Utility x2 13961 | -6/Factory | Loaded intel: 4 garrison access locations 14391 | -6/Factory | Fabricated Hrd. Heavy Armor Plating (x1) 14497 | -6/Factory | Found Prototype Processor 14497 | -6/Factory | Identified Exp. Targeting Computer 14716 | -6/Factory | Central database locked down 14716 | -6/Factory | Identified exit to Lower Caves 14890 | -6/Factory | Build established: Scavenger-Mutant 15342 | -6/Factory | Build established: Mutant 15364 | -6/Factory | Discovered new exit (range 76) 16103 | -6/Factory | Garrison activated, responded to threat 16308 | -6/Factory | Repaired Imp. Lightning Gun 16348 | -6/Factory | Repaired Arm. Treads 16758 | -6/Factory | First assault squad dispatched 16914 | -6/Factory | Garrison activated, responded to threat 16968 | -6/Factory | Destroyed 8 combat bots 16974 | -6/Factory | Lost 3 parts (1n2w) 16986 | -6/Factory | Entered Lower Caves 18320 | -6/Lower Caves | Discovered new exit (range 11) 18500 | -6/Lower Caves | Encountered a Warlord checkpoint 18669 | -6/Lower Caves | Attracted the attention of an 0b10 outpost 18678 | -6/Lower Caves | Core integrity fell below 50% 18727 | -6/Lower Caves | Destroyed 9 combat bots 18729 | -6/Lower Caves | Lost 10 parts (2p4n2u2w) 18824 | -6/Lower Caves | Entered another Lower Caves area 18824 | -6/Lower Caves | Accompanied by 2 allies 18910 | -6/Lower Caves | Discovered new exit (range 10) 18967 | -6/Lower Caves | Spotted B-75 Beast 18987 | -6/Lower Caves | Entered Factory 18987 | -5/Factory | Evolved 2 slots: Utility x1, Weapon x1 19490 | -5/Factory | Lost 4 parts (2p1u1w) 19536 | -5/Factory | Build established: Scavenger-Gunner 19689 | -5/Factory | Lost 4 parts (1n3w) 19720 | -5/Factory | System corruption reached 10% 19756 | -5/Factory | Lost 6 parts (2p2n1u1w) 20088 | -5/Factory | Discovered new exit (range 20) 20257 | -5/Factory | Fabricated Weapon Mount (x2) 20308 | -5/Factory | Identified exit to Upper Caves 20594 | -5/Factory | Entered Upper Caves 20594 | -5/Upper Caves | Accompanied by 1 ally 20602 | -5/Upper Caves | Learned Factory stockpile data 20765 | -5/Upper Caves | Attracted the attention of an 0b10 checkpoint 21046 | -5/Upper Caves | Discovered new exit (range 20) 21079 | -5/Upper Caves | Core integrity fell below 50% 21481 | -5/Upper Caves | Build established: Assassin 21584 | -5/Upper Caves | Identified exit to Upper Caves 21587 | -5/Upper Caves | Entered another Upper Caves area 21651 | -5/Upper Caves | Discovered new exit (range 9) 21663 | -5/Upper Caves | Identified exit to Factory 21919 | -5/Upper Caves | Learned Factory stockpile data 22172 | -5/Upper Caves | Encountered a Warlord checkpoint 22855 | -5/Upper Caves | Discovered new exit (range 5) 22859 | -5/Upper Caves | Identified exit to Warlord 22861 | -5/Upper Caves | Entered Warlord 22909 | -5/Warlord | System corruption cleaned by Quarantine Array 23237 | -5/Warlord | Met Warlord 23262 | -5/Warlord | Warlord's base attacked by MAIN.C 23358 | -5/Warlord | Found Prototype Energy Cannon 23358 | -5/Warlord | Identified Vortex Cannon 23368 | -5/Warlord | Found Vortex Cannon 23527 | -5/Warlord | Found Prototype Device 23527 | -5/Warlord | Identified System Purifier 23549 | -5/Warlord | Found Prototype Reactor 23612 | -5/Warlord | Warlord forces counterattacked 23621 | -5/Warlord | Spotted Striker 23637 | -5/Warlord | Destroyed Striker 23685 | -5/Warlord | Spotted Executioner 23710 | -5/Warlord | Destroyed Executioner 23736 | -5/Warlord | Lost 7 allies 23746 | -5/Warlord | Destroyed 9 combat bots 23764 | -5/Warlord | Spotted Executioner 23764 | -5/Warlord | Spotted Executioner 23836 | -5/Warlord | Discovered new exit (range 9) 23849 | -5/Warlord | Lost 8 allies 23862 | -5/Warlord | Spotted Striker 23862 | -5/Warlord | Spotted Striker 23867 | -5/Warlord | Spotted XB-TJ9(g) 23869 | -5/Warlord | P-70 Sage assimilated allied RI-A2C(M) 23883 | -5/Warlord | Identified exit to Proximity Caves 23884 | -5/Warlord | Entered Proximity Caves 23909 | -4/Proximity Caves | Lost 7 allies 24190 | -4/Proximity Caves | Build established: Scavenger-Assassin 24770 | -4/Proximity Caves | Discovered exit to Factory (range 15) 24796 | -4/Proximity Caves | Learned location of Quarantine (-3) 25063 | -4/Proximity Caves | Entered Factory 25063 | -4/Factory | Evolved 2 slots: Utility x2 25064 | -4/Factory | Identified exit to Extension 25128 | -4/Factory | Discovered new exit (range 60) 25275 | -4/Factory | Identified exit to Upper Caves 25466 | -4/Factory | Destroyed 8 combat bots 25635 | -4/Factory | Found Prototype Launcher 25635 | -4/Factory | Identified Com. Tesla Bomb Launcher 25641 | -4/Factory | Found Com. Tesla Bomb Launcher 25646 | -4/Factory | Found Com. Tesla Bomb Launcher 25923 | -4/Factory | Build established: Assassin 26445 | -4/Factory | Repaired Mak. Ablative Armor 26503 | -4/Factory | Found Unknown Device 26503 | -4/Factory | Identified Quantum Capacitor 26846 | -4/Factory | Build established: Mutant 27177 | -4/Factory | Entered Extension 27491 | -4/Extension | Rescued A7 27612 | -4/Extension | Rescued a captive Derelict 27613 | -4/Extension | Rescued a captive Derelict 27971 | -4/Extension | Spotted B-86 Titan 27989 | -4/Extension | Destroyed B-86 Titan 27993 | -4/Extension | Spotted B-86 Titan 28011 | -4/Extension | Destroyed B-86 Titan 28485 | -4/Extension | Rescued a captive Derelict 28517 | -4/Extension | Discovered new exit (range 10) 28518 | -4/Extension | Discovered new exit (range 6) 28559 | -4/Extension | Entered Cetus 28559 | -4/Cetus | Accompanied by 10 allies (A7) 28564 | -4/Cetus | Build established: Commander-Mutant 28564 | -4/Cetus | Acquired a Cetus Manufacturing Module code from A7 28574 | -4/Cetus | Spotted Cetus Guard 28575 | -4/Cetus | Spotted Cetus Guard 28576 | -4/Cetus | Spotted Cetus Guard 28580 | -4/Cetus | Spotted Cetus Guard 28587 | -4/Cetus | Allies destroyed Cetus Guard 28588 | -4/Cetus | Destroyed Cetus Guard 28591 | -4/Cetus | Destroyed Cetus Guard 28596 | -4/Cetus | Destroyed Cetus Guard 28652 | -4/Cetus | System corruption reached 10% 28692 | -4/Cetus | Started Cetus Manufacturing Module 28717 | -4/Cetus | Manufactured an Enhanced Grunt 28722 | -4/Cetus | Escorted A7 to Cetus Mainframe 28742 | -4/Cetus | Manufactured an Enhanced Grunt 28767 | -4/Cetus | Manufactured an Enhanced Grunt 28792 | -4/Cetus | Manufactured an Enhanced Grunt 28817 | -4/Cetus | Manufactured an Enhanced Grunt 28833 | -4/Cetus | Discovered new exit (range 23) 28870 | -4/Cetus | Spotted Cetus Guard 28870 | -4/Cetus | Spotted Cetus Guard 28870 | -4/Cetus | Spotted Cetus Guard 28870 | -4/Cetus | Spotted Cetus Guard 28874 | -4/Cetus | Discovered new exit (range 23) 28894 | -4/Cetus | Allies destroyed Cetus Guard 28898 | -4/Cetus | Allies destroyed Cetus Guard 28899 | -4/Cetus | Allies destroyed Cetus Guard 28899 | -4/Cetus | Allies destroyed Cetus Guard 28903 | -4/Cetus | Found Prototype Device 28903 | -4/Cetus | Identified Exp. Thermal Shield 28923 | -4/Cetus | Lost 3 allies 28927 | -4/Cetus | Lost 4 parts (1n1u2w) 28940 | -4/Cetus | Met Revision 17 29131 | -4/Cetus | Entered Archives 29131 | -4/Archives | Accompanied by 11 allies (A7) 29136 | -4/Archives | Received a hacking code to weaken MAIN.C 29152 | -4/Archives | Discovered new exit (range 22) 29190 | -4/Archives | Discovered new exit (range 18) 29283 | -4/Archives | Discovered new exit (range 17) 29600 | -4/Archives | Entered Hub_04(d) 29600 | -4/Hub_04(d) | Accompanied by 10 allies 29687 | -4/Hub_04(d) | Lost 5 allies 29693 | -4/Hub_04(d) | Lost 3 parts (1p2w) 29718 | -4/Hub_04(d) | Garrison activated, responded to threat 29728 | -4/Hub_04(d) | Network Hub disabled 29732 | -4/Hub_04(d) | Spotted Lightning 29732 | -4/Hub_04(d) | Spotted Lightning 29736 | -4/Hub_04(d) | Network Hub disabled 29808 | -4/Hub_04(d) | Discovered new exit (range 4) 30039 | -4/Hub_04(d) | Lost 3 allies 30050 | -4/Hub_04(d) | Build established: Scavenger-Gunner 30214 | -4/Hub_04(d) | Discovered new exit (range 7) 30339 | -4/Hub_04(d) | Discovered new exit (range 8) 30349 | -4/Hub_04(d) | Network Hub disabled 30353 | -4/Hub_04(d) | Network Hub disabled 30413 | -4/Hub_04(d) | Entered Research 30413 | -3/Research | Evolved 2 slots: Power x1, Utility x1 30414 | -3/Research | Identified Vortex Chain Reactor 30613 | -3/Research | Revision forces began assault on 0b10 30658 | -3/Research | Build established: Gunner 30693 | -3/Research | Met up with Revision 17++ 30713 | -3/Research | Found Quantum Capacitor 30846 | -3/Research | Identified exit to Armory 30846 | -3/Research | Identified exit to Quarantine 31113 | -3/Research | Research terminal network offline 31178 | -3/Research | Found Prototype Hackware 31178 | -3/Research | Identified Exp. System Shield 31906 | -3/Research | Entered Quarantine 32500 | -3/Quarantine | Found Alien Artifact 32512 | -3/Quarantine | Identified Phase Armor 32539 | -3/Quarantine | Met incapacitated Sigix Warrior 32539 | -3/Quarantine | Lockdown squad dispatched 32633 | -3/Quarantine | Spotted Lightning 32635 | -3/Quarantine | Spotted Lightning 32654 | -3/Quarantine | Spotted Lightning 32661 | -3/Quarantine | Destroyed Lightning 32668 | -3/Quarantine | System corruption reached 10% 32688 | -3/Quarantine | Destroyed Lightning 32693 | -3/Quarantine | Destroyed Lightning 32705 | -3/Quarantine | Found Prototype Energy Cannon 32705 | -3/Quarantine | Identified EMDS 32725 | -3/Quarantine | Found Prototype Device 32725 | -3/Quarantine | Identified Exp. EM Shield 32966 | -3/Quarantine | Build established: Scavenger-Gunner 32994 | -3/Quarantine | Found Alien Artifact 33140 | -3/Quarantine | Discovered new exit (range 7) 33191 | -3/Quarantine | Found Alien Artifact 33221 | -3/Quarantine | Identified Core Reset Matrix 33221 | -3/Quarantine | Identified Terrabomb 33456 | -3/Quarantine | Spotted Alpha 7 33703 | -3/Quarantine | Entered Research 33703 | -2/Research | Warlord forces began assault on 0b10 33703 | -2/Research | Evolved 2 slots: Propulsion x2 33813 | -2/Research | Research machine network offline 33949 | -2/Research | Destroyed 7 combat bots 34036 | -2/Research | Borebot progress halted 34191 | -2/Research | Found Prototype Device 34199 | -2/Research | Identified Exp. EM Disruption Field 34228 | -2/Research | Borebot progress halted 34430 | -2/Research | Borebot progress halted 34567 | -2/Research | Discovered new exit (range 10) 34567 | -2/Research | Spotted Striker 34567 | -2/Research | Spotted Executioner 34574 | -2/Research | Destroyed Executioner 34576 | -2/Research | Destroyed Striker 34593 | -2/Research | Lost 4 allies 34593 | -2/Research | Found Prototype Device 34601 | -2/Research | Identified Thermal Barrier 34881 | -2/Research | Met DD-05H 34886 | -2/Research | Build established: Gunner 34944 | -2/Research | Met PL-HR7 35009 | -2/Research | Spotted Striker 35013 | -2/Research | Destroyed Striker 35200 | -2/Research | Spotted Executioner 35204 | -2/Research | Destroyed Executioner 35204 | -2/Research | Spotted Executioner 35205 | -2/Research | Given Cave Seal Controls access code 35208 | -2/Research | Destroyed Executioner 35284 | -2/Research | Found Corrupted Prototype Processor 35303 | -2/Research | Identified Exp. Core Analyzer 35355 | -2/Research | Spotted Executioner 35356 | -2/Research | Spotted Striker 35358 | -2/Research | Destroyed Striker 35366 | -2/Research | Destroyed Executioner 35410 | -2/Research | Found Prototype Launcher 35421 | -2/Research | Identified Enh. Gamma Bomb Array 35708 | -2/Research | Entered Access 35708 | -1/Access | Evolved 2 slots: Power x1, Utility x1 35797 | -1/Access | Lost 3 allies 35955 | -1/Access | Hacking Suite fried by hacking feedback 36043 | -1/Access | Destroyed 8 combat bots 36078 | -1/Access | Build established: Generator-Tank 36361 | -1/Access | Energy Cycler disabled 36690 | -1/Access | Destroyed 16 combat bots 36708 | -1/Access | First assault squad dispatched 36889 | -1/Access | Identified exit to Command 37024 | -1/Access | Spotted B-99 Colossus 37207 | -1/Access | Lost 3 parts (1u2w) 37453 | -1/Access | Destroyed 9 combat bots 37834 | -1/Access | Lost 3 allies 39464 | -1/Access | Entered Command 39464 | -1/Command | Accompanied by 1 ally 39614 | -1/Command | Phase Generator disabled 39964 | -1/Command | First assault squad dispatched 40236 | -1/Command | Destroyed 7 combat bots 40488 | -1/Command | Destroyed 7 combat bots 40771 | -1/Command | High security lockdown imminent 40851 | -1/Command | High security lockdown engaged 41026 | -1/Command | Destroyed 17 combat bots 41049 | -1/Command | Spotted Investigator 41050 | -1/Command | Scanned by Researcher 41062 | -1/Command | Destroyed Investigator 41088 | -1/Command | Destroyed 18 combat bots 41231 | -1/Command | System corruption reached 10% 41235 | -1/Command | System corruption reached 30% 41238 | -1/Command | Destroyed 28 combat bots 41247 | -1/Command | Lost 3 parts (2p1u) 41409 | -1/Command | Spotted Executioner 41416 | -1/Command | Destroyed Executioner 41419 | -1/Command | Spotted Executioner 41420 | -1/Command | Destroyed Executioner 41420 | -1/Command | Spotted Executioner 41423 | -1/Command | Spotted Executioner 41423 | -1/Command | Spotted Executioner 41423 | -1/Command | Destroyed Executioner 41423 | -1/Command | Destroyed Executioner 41424 | -1/Command | Destroyed Executioner 41427 | -1/Command | Destroyed Executioner 41429 | -1/Command | Spotted Investigator 41434 | -1/Command | Destroyed Investigator 41456 | -1/Command | Destroyed 26 combat bots 41674 | -1/Command | Spotted Executioner 41687 | -1/Command | Spotted Striker 41692 | -1/Command | Destroyed Striker 41706 | -1/Command | Core integrity fell below 50% 41753 | -1/Command | Destroyed Executioner 41774 | -1/Command | Destroyed 27 combat bots 41832 | -1/Command | Destroyed Executioner 41838 | -1/Command | Spotted Striker 41843 | -1/Command | Destroyed Striker 41866 | -1/Command | Spotted Executioner 41866 | -1/Command | Spotted Executioner 41873 | -1/Command | Destroyed Executioner 41874 | -1/Command | Destroyed Executioner 42119 | -1/Command | Spotted Striker 42120 | -1/Command | Destroyed Striker 42141 | -1/Command | Spotted Executioner 42148 | -1/Command | Destroyed Executioner 44262 | -1/Command | Released all parts (9) 44262 | -1/Command | Used Terrabomb 44263 | -1/Command | Core integrity fell below 20% 44263 | -1/Command | Destroyed by P-80 Master with Gamma Rifle Last Messages --------------- corruption cleaned. 44263_ C-57 Dissector springs to life. 44263_ S-43 Plague springs to life. 44263_ H-88 Terminator springs to life. 44263_ Penetrated by Slug. 44263_ S-43 Plague springs to life. 44263_ H-88 Terminator springs to life. 44263_ Penetrated by Slug. 44263_ H-88 Terminator springs to life. 44263_ C-57 Dissector springs to life. 44263_ S-43 Plague springs to life. 44263_ H-88 Terminator springs to life. 44263_ S-43 Plague springs to life. 44263_ P-80 Master resets P-80 Master, system corruption cleaned. 44263_ S-43 Plague springs to life. 44263_ Knocked back. 44263_ P-80 Master resets P-80 Master, system corruption cleaned. [Achievement: Magneto] Map ----- +----------------------------------------------------+ | ?????????????????#??????#?#?## " | | ???????????#????????????#????# | | ??????????????#??????????????# | | ??????????????#???????##????## | | ??????????????#??"" ??????## | | ????????#?????? " ???#?# | | ???????????? " " ??# ######## | | ?????? ??? " " # ###+#######?# | | ????????" " " " ## ### | | ????????" " " "" ##] #?# | | ??????? " " " " # #?# | | ???????""" """ "" ;! " "" #?# | | ?????? " " " " " ; %[ / """"### | | ?????? " " " " ; ; [ ; """"#?# | | ?????? " " " ;] !;;;;;; ;; "" #?# #### | | ????? " " " ! ; ; ;; ###^#??# | | ????? " " " ; ; ; ;; ###+#### | | ????" " " " = ; ;;;;;;#####?# | | ????" """ ! ;;; ;;;;;;;###### | | ???? ! ; # | | ???? = ! ; # | | ???? ; # | | ?? ?? == [ ! ; "" # | | ????? " [p= == % ! ; ;;;; ; """" # "" | | ?????? " [p ==!*= ;= ; ; ; """" #"""" | | ?????? "==pp[[ =%[=[! ; @ ; ; + #"""" | | ?????? [==%! % = ; ; ; ; # "" | | ??????? !=g=!% [g= ;;;;; ; ; / | | ??#???? %%= %= ; ; # | | ?????? ? [[=[==%=[ ; ; * ###/## | | ????????|[[= ; ; ; k !%=## | | ??????? ?%% % [ =*; ; ; =[ # | | ??????????! = ; ; ;;;########### | | ??????????? ; ; ; ##????##?## | | ???????????? ; ; ;##???????#?# | | ?????????????" ; ; ############# | | ?????????????# ; ; | | ??????????????#?;;; ## | | ????????????#???#? #### #### #######+ # | | ?????????????????????#####?### #??# ###?## | | ??????????#?????????????#????# #??# ###### | | ??????????????????#????????### #??# + | | ?????????????????#????#??#?#?# ##?# ###### | | ???????#???????????#?????#####+####+####### | | ???????????????????????????# # "" | | ??????????????????#????????# # """" | | ???????????????????????????# # """" | | ??????????????#???#????????# # "" | | ???????????????????????????# ######?# | | ?????????????????????#??#??# ##???##? | +----------------------------------------------------+ Best States ------------- Heat Dissipation 142 Coolant Potential 100 Energy Generation 111 Energy Capacity 1200 Matter Stores 300 Matter Capacity 300 Sight Range 23 Robot Scan Range 16 Terrain Scan Range 24 Terrain Scan Density 10 Cloak Strength 2 Power Amplification 40 Base Temperature (-) 200 Corruption Block 17 Armor Coverage 2400 Resistance: KI 30 Resistance: TH 30 Resistance: EM 75 Core Shielding 20 Propulsion Shielding 33 Weapon Shielding 66 Phase Shifting 15 Evasion (%) 55 Targeting Accuracy 38 Core Analysis 6 Recoil Reduction 6 Matter Filtering 50 Energy Filtering 30 Particle Charging 30 Offensive Hacking 14 Defensive Hacking 16 Authchip Count 1 Trap Extractor Capacity 6 Item Schematics ----------------- Stasis Canceller | -7/Zion | Archive Imp. Melee Analysis Suite | -7/Zion | Archive Core Analyzer | -7/Zion | Archive Hpw. Shock Rifle | -7/Zion | Archive Adv. Field Recycling Unit | -7/Zion | Archive Adv. ECM Suite | -7/Zion | Archive Hvy. Plasma Cannon | -7/Zion | Archive Hvy. Missile Launcher | -7/Zion | Archive Drone Bay | -7/Zion | Archive Hrd. Heavy Armor Plating | -7/Zion | Archive Proton Cannon | -7/Zion | Archive Imp. Field Recycling Unit | -7/Zion | Archive Adv. Sensor Array | -7/Zion | Archive Imp. Carbon-fiber Leg | -7/Zion | Archive Lrn. Proton Cannon | -7/Zion | Archive Weapon Mount | -6/Factory | Hacked Adv. Gravity Neutralizer | -3/Quarantine | Archive Cld. Antigrav System | -3/Quarantine | Archive Hvy. Neutron Cannon | -3/Quarantine | Archive Hvy. Wave Gun | -3/Quarantine | Archive Exp. Focal Shield | -3/Quarantine | Archive Diametric Drive | -3/Quarantine | Archive Neutron Cannon | -3/Quarantine | Archive Exp. Hacking Suite | -3/Quarantine | Archive Coolant Network | -3/Quarantine | Archive Hds. Centrium Wheel | -3/Quarantine | Archive Exp. Optical Array | -3/Quarantine | Archive Adv. Myomer Leg | -3/Quarantine | Archive Robot Schematics ------------------ K-01 Serf | -7/Zion | Archive S-27 Virus | -7/Zion | Archive B-48 Gladiator | -7/Zion | Archive H-77 Assassin | -7/Zion | Archive O-32 Director | -3/Quarantine | Archive R-10 Processor | -3/Quarantine | Archive E-15 Imp | -3/Quarantine | Archive C-35 Carver | -3/Quarantine | Archive Fabricated ------------ Hpw. Shock Rifle | x2 | -7/Factory | Preloaded Hrd. Heavy Armor Plating | x1 | -6/Factory | Authchip Weapon Mount | x2 | -5/Factory | Authchip Repaired ---------- Hvy. Ion Engine | 39% | -9/Materials Shield Generator | 10% | -8/Materials Lgt. Treads | 27% | -8/Materials Imp. Lightning Gun | 5% | -6/Factory Arm. Treads | 39% | -6/Factory Mak. Ablative Armor | 15% | -4/Factory Alien Tech Used ----------------- Phase Armor Terrabomb Achievements -------------- Magneto Challenges ------------ None Game ------ Seed ExpertLayeredTube Manual? 0 Play Time 06:49:41 Cumulative 493.1 hours Start 2025.07.05 @ 10:31:36 End 2025.07.06 @ 15:07:27 Sessions 5 Manual Loads 0 Difficulty Rogue Special Mode None Game No. 109 Rogue 109 Adventurer 0 Explorer 0 Win Type - Total 36 Types 17/1/8/1/1/0/3/3/1/1 Lore% 91 Gallery% 80 Achievement% 82 Wizard Run 0 Options --------- Layout 1 ASCII 0 Keyboard 0 Movement Mouse Keybinds 0 Fullscreen 1 Font 24/Smallcaps Map View 50x35 Zoom Use 0% Tactical HUD 1 Map Filters NONE Filters NONE Steam 1 RUN: 5dc5d60d-688a-4829-b987-f603e9f17d80